Workbook

Sheet Introduction
B1: ICFPA/NCASI Spreadsheets for Calculating GHG emissions from pulp and paper manufacturing Workbook Version 2.1a, for the USDOE 1605(b) Voluntary Reporting of Greenhouse Gases Program (see below for USER AGREEMENT)
C2: An aid to developing estimates using the methods in "Calculation tools for estimating greenhouse gas emissions from pulp and paper mills," Report Version 1.0
C4: This tool intends to facilitate the calculation of direct CO2, CH4, and N2O emissions from pulp and paper mills and ancillary operations. It also addresses emissions attributable to the purchase and export of electricity and/or steam. This document is to be used in conjunction with three additional documents: 1) 'Calculation tools for estimating Greenhouse Gas Emissions from pulp and paper mills,' and 2) ‘Corporate GHG Accounting and Reporting: Corporate Inventory Module’, available at www.ghgprotocol.org 3) 'Instructions for Form EIA-1605 Voluntary Reporting of Greenhouse Gases, For Data Through 2002,' available from the USDOE at http://www.eia.doe.gov/oiaf/1605/techassist.html
C11: These spreadsheets include significant amounts of material copied from other WRI and WBCSD calculation tools. Intellectual property rights of the WRI and WBCSD calculation tools belong to WRI and WBCSD, unless stated otherwise.
C13: The reporting format for the "Calculation tools for estimating greehouse gas emissions from pulp and paper mills" can be satisfied by printing the following completed worksheets:
D15: Operations in Inventory
D16: Stationary Combustion
D17: Mobile & Transportation
D18: Waste Mngmt.
D19: Direct - Make-up Carbonates
D20: CHP allocation
D21: Indirect - Energy Imports
D22: Energy Exports
D23: CO2 Imports and Exports
D24: Summary Table
D25: Supporting Information on Biomass
C27: These spreadsheets were developed by NCASI for the Climate Change Working Group of the International Council of Forest and Paper Associations (ICFPA). Questions or comments on this material can be directed to: Barry Malmberg NCASI PO Box 271 Sheridan, WY 82801 phone: + 541-752-8806 e-mail: BMalmberg@ncasi.org
C29: User Agreement: By using the Spreadsheets and associated materials in any manner, the User agrees to the following terms of this agreement:
C31: 1 | D31: Copyright: Portions of the spreadsheets and associated materials were developed by WRI, WBCSD or NCASI, are copyrighted, and are published here with the permission of those developers. The User acknowledges these copyrights.
C32: 2 | D32: Acknowledgement: The User agrees to acknowledge WRI, WBCSD, ICFPA, and NCASI for their roles in developing the Spreadsheets whenever the User authors reports or publications based in whole or in part on the use of the Spreadsheets.
C33: 3 | D33: Disclaimer: These Spreadsheets and associated materials have been prepared with a high degree of expertise and professionalism, and it is believed that the Spreadsheets provide a useful and accurate approach for calculating greenhouse gas emissions. However, the organizations involved in their development, including WRI, WBCSD, ICFPA and NCASI, collectively and individually, do not warrant these Spreadsheets for any purpose, nor do they make any representations regarding their fitness for any use or purpose whatsoever. Each User agrees to decide if, when and how to use the Spreadsheets, and does so at his or her sole risk. Under no circumstances shall WRI, WBCSD, ICFPA or NCASI be liable for any damages, including incidental, special or consequential damages, arising from the use of these Spreadsheets or an inability to use them.

Sheet Table of Contents
C2: Name of worksheet | D2: Content / purpose
C4: Introduction
C5: Table of Contents
C6: Operations in Inventory | D6: Describing the inventory boundaries and listing the operations included in the inventory
C7: Stationary Combustion | D7: Direct emissions of CO2, CH4, and N2O resulting from fuel combustion - includes default emission factors
C8: Mobile & Transportation | D8: Emissions of CO2, CH4, and N2O from fuel combustion in mobile equipment and transportation devices
C9: Waste Mngmt. | D9: Emissions of CH4 resulting from mill-owned landfills or anaerobic treatment operations
C10: Direct - Make-up Carbonates | D10: Direct emissions of CO2 from make-up carbonates used in the pulp mill
C11: CHP Allocation | D11: Allocation emissions from combined heat and power systems
C12: Indirect - Energy Imports | D12: GHG emissions resulting from electricity and /or steam imports
C13: Energy Exports | D13: GHG emission impacts associated with electricity and /or steam exports
C14: CO2 Imports and Exports | D14: CO2 emissions exported to precipitated calcium carbonate plants and CO2 imports (e.g. for neutralization)
C15: Summary Table | D15: Summarizes results of inventory
C16: Custom Emission Factors | D16: Calculating custom emission factors
C17: Energy Content | D17: Fuel specific higher heating values
C18: Conversion Factors | D18: Factors for converting among common units of measure
C19: Energy Factors | D19: Contains conversion factors and emission factors for use by formulas imbedded in the data entry forms
C20: Raw Data Log | D20: Provides a place for the automatic entry of raw data entered into the data entry forms, prior to unit conversion
C21: Supporting Info. on Biomass | D21: Direct emissions of biomass CO2 for informational purposes only (do not include in GHG inventory)

Sheet Operations in Inventory
B2: This worksheet is for showing which operations are included in the inventory
F3: User enters information in spaces with this color
B5: Operations in the Inventory
F7: Identifying name assigned to this inventory:
F9: Use this space to provide a general description of operational boundaries.
F12: Use this space to provide additional information helpful to understanding the operational boundaries of the inventory.
F15: Use this space to provide additional information helpful to understanding how emissions from partial ownership situations are allocated.
F18: The following information is not directly used in the GHG emissions calculations, but is intended to provide clarification of the type of facility for which the inventory is being performed.
F19: Core Operations that might be included in the inventory are listed below | G19: Place an "X" below where appropriate to indentify operations included in the inventory
F20: Harvesting
F21: Wood/chip/bark/wastepaper/other raw material transportation vehicles
F22: Product, by-product or waste transportation vehicles
F23: Debarking
F24: Chipping
F25: Mechanical pulping
F26: Chemical pulping – kraft
F27: Chemical pulping – sulfite
F28: Chemical pulping – other
F29: Semichemical pulping
F30: Recovery furnace – kraft
F31: Liquor furnace – sulfite
F32: Liquor furnace – semichem
F33: Lime kiln or calciner
F34: Incinerators for noncondensible gases, etc.
F35: Wastepaper pulping and cleaning
F36: Deinking
F37: Bleaching of chemical or semichemical pulp
F38: Brightening of deinked pulp
F39: On-site preparation of chemicals used in core operations (e.g. ClO2 or O3)
F40: Paper and/or paperboard production
F41: Coating (including extrusion coating)
F42: Roll trimming, roll wrapping, sheet cutting
F43: On-site power and steam boilers
F44: On-site combustion turbines
F45: Gas-fired infrared dryers
F46: Other fossil fuel-fired dryers
F47: Wastewater treatment operations
F48: Sludge processing
F49: Landfill receiving mill waste
F50: Air emissions control devices
F51: On-site vehicles and machinery
F52: Normal offices/workspace for mill employees
F53: Imports of electrical power
F54: Imports of steam or hot water
F55: Exports of electrical power
F56: Exports of steam or hot water

Sheet Stationary Combustion
C3: Direct Emissions - Stationary Fuel Combustion, (including methane and nitrous oxide emissions from biomass fuels)
C4: Note: Where mills are exporting CO2 to precipitated calcium carbonate (PCC) plants, these exports are not considered emissions. Amounts of exported CO2 are calculated in the sheet for "CO2 Imports and Exports." On the "Stationary Combustion" sheet (this sheet), the amounts of exported CO2 are automatically subtracted from the sum of direct emissions from stationary fossil fuel combustion. Also, emissions from mobile sources are reported on the "Mobile & Transportation" spreadsheet immediately behind this spreadsheet
C6: These spreadsheets include significant amounts of material copied from other WRI and WBCSD calculation tools. Intellectual property rights of the WRI and WBCSD calculation tools belong to WRI and WBCSD, unless stated otherwise.
B8: EXPLANATION OF CELL COLOR SCHEME
B9: User entry: Source / fuel description
B10: User entry: Fuel use / emission factor values | E10: Suggested default emission factors shown below
B11: Auto calculated value:
B14: Direct Emissions - Stationary Fuel Combustion
E15: Step 1 | F15: Step 2 | I15: Step 3
E16: A | F16: B | G16: C | H16: D | I16: E | J16: F | K16: G | L16: H
E17: Quantity of fuel burned | F17: CO2 emission factor Suggested default emission factors shown below | G17: CH4 emission factor Suggested default emission factors shown below | H17: N2O emission factor Suggested default emission factors shown below | I17: CO2 emissions in metric tonnes | J17: CH4 emissions in metric tonnes | K17: N2O emissions in metric tonnes | L17: Total emissions in terms of CO2 equivalents (metric tonnes)
E18: MMBtu HHV | F18: (lb CO2 / MMBtu HHV) | G18: (lb CH4 / MMBtu HHV) | H18: (lb N2O / MMBtu HHV) | I18: E = A * B / 2205 | J18: F = A * C / 2205 | K18: G = A * D / 2205 | L18: H = E + (F * 21) + (G * 310)
C19: Example: Source 1 | D19: Natural gas | E19: 1000 | F19: 117.08 | G19: 0.0029 | H19: 0.0002 | I19: =IF(E19="","",E19*F19/2205) -> 53.09750567 | J19: =IF(G19="","",E19*G19/2205) -> 0.001315192744 | K19: =IF(H19="","",E19*H19/2205) -> 9.070294785e-05 | L19: =IF(E19="","",IF(I19="",0,I19)+IF(J19="",0,J19*21)+IF(K19="",0,K19*310)) -> 53.15324263
C20: Source description | D20: Fuel type | E20: Fuel Quant | F20: CO2 Em. Factor | G20: CH4 Em. Factor | H20: N2O Em. Factor | I20: CO2 emissions (tonne) | J20: CH4 emissions (tonnes) | K20: N2O emissions (tonnes) | L20: Total EM
I21: =IF(E21="","",E21*F21/2205) ->  | J21: =IF(G21="","",E21*G21/2205) ->  | K21: =IF(H21="","",E21*H21/2205) ->  | L21: =IF(E21="","",IF(I21="",0,I21)+IF(J21="",0,J21*21)+IF(K21="",0,K21*310)) -> 
I47: CO2 (metric tonnes) | J47: CH4 (metric tonnes) | K47: N2O (metric tonnes) | L47: CO2 Equivalents (metric tonnes)
E48: Step 4: Sum total of GHG emissions (including CO2 exports): | I48: =SUM(I21:I45) -> 0 | J48: =SUM(J21:J45) -> 0 | K48: =SUM(K21:K45) -> 0 | L48: =I48+J48*21+K48*310 -> 0
E49: Step 5: CO2 exported to PCC plant (calculated in "CO2 Imports and Exports" worksheet) | I49: ='CO2 Imports and Exports'!E20 -> 0 | J49: N/A | K49: N/A | L49: N/A
E50: Step 6: Total GHG emissions from stationary fossil fuel combustion | I50: =+I48-I49 -> 0 | J50: =+J48 -> 0 | K50: =+K48 -> 0 | L50: =I50+J50*21+K50*310 -> 0
D55: Suggested Default Emission Factors
C57: Sources (unless otherwise noted): | D57: CO2 Emission factors are from DOE Instructions for Form EIA-1605, Appendix B, March 2003 CH4 Emission Factors are from Revised 1996 IPCC Guidelines for National Greenhouse Gas Inventories: Reference Manual (Vol. 3) N2O Emission Factors are from Revised 1996 IPCC Guidelines for National Greenhouse Gas Inventories: Reference Manual (Vol. 3)
C58: Fuel type | D58: lb CO2 / MMBtu fuel [based on higher heating value, HHV] | E58: lb CH4 / MMBtu fuel [based on higher heating value, HHV] | F58: lb N2O / MMBtu fuel [based on higher heating value, HHV] | G58: Comments
C59: Liquid fossil
C60: Gasoline | D60: 156.425 | G60: IPCC does not provide CH4 or N2O factors for this fuel
C61: Kerosene | D61: 159.535 | G61: IPCC does not provide CH4 or N2O factors for this fuel
C62: Jet Fuel | D62: 156.258 | G62: IPCC does not provide CH4 or N2O factors for this fuel
C63: Aviation gasoline | D63: 152.717 | G63: IPCC does not provide CH4 or N2O factors for this fuel
C64: Distillate fuel (No.1, No.2, No.4 fuel oil and diesel) Stationary sources except lime kilns and calciners | D64: 161.386 | E64: 0.0004 | F64: 0.0009 | G64: IPCC Tier 2 CH4 and N2O factors
C65: Distillate fuel (No.1, No.2, No.4 fuel oil and diesel) Lime kilns | D65: 161.386 | E65: 0.006 | F65: 0 | G65: CH4 factor from NCASI 1981 N2O factor from IPCC discussion of formation requirements
C66: Distillate fuel (No.1, No.2, No.4 fuel oil and diesel) Calciners | D66: 161.386 | E66: 0.006 | F66: 0.001 | G66: CH4 factor from NCASI 1981 N2O factor is IPCC Tier 1
C67: Residual fuel oil (No.5, No.6 fuel oil) | D67: 173.906 | E67: 0.007 | F67: 0.0007 | G67: IPCC Tier 2 CH4 and N2O factors
C68: Residual fuel oil (No.5, No.6 fuel oil) Lime kilns | D68: 173.906 | E68: 0.006 | F68: 0 | G68: CH4 factor from NCASI 1981 N2O factor from IPCC discussion of formation requirements
C69: Residual fuel oil (No.5, No.6 fuel oil) Calciners | D69: 173.906 | E69: 0.006 | F69: 0.001 | G69: CH4 factor from NCASI 1981 N2O factor is IPCC Tier 1
C70: LPG | D70: 139.039 | G70: IPCC does not provide CH4 or N2O factors for this fuel
C71: Propane | D71: 139.178 | G71: IPCC does not provide CH4 or N2O factors for this fuel
C72: Petroleum coke | D72: 225.13 | G72: IPCC does not provide CH4 or N2O factors for this fuel
C73: Gaseous fossil
C74: Natural gas (dry) - boilers and IR dryers | D74: 117.08 | E74: 0.0029 | F74: 0.0002 | G74: N2O factor is IPCC Tier 1
C75: Natural gas (dry) - turbines | D75: 117.08 | E75: 0.001 | F75: 0.0002 | G75: N2O factor is IPCC Tier 1
C76: Natural gas (dry) - lime kiln | D76: 117.08 | E76: 0.0057 | F76: 0 | G76: CH4 factor from NCASI 1981 N2O factor from IPCC discussion of formation requirements
C77: Natural gas (dry) - calciners | D77: 117.08 | E77: 0.0057 | F77: 0.0002 | G77: CH4 factor from NCASI 1981 N2O factor is IPCC Tier 1 for natural gas
C78: Natural gas (dry) - Int. Comb. Engine 2 - cycle lean burn | D78: 117.08 | E78: 0.036 | F78: 0.0002 | G78: N2O factor is IPCC Tier 1
C79: Natural gas (dry) - Int. Comb. Engine 4 - cycle lean burn | D79: 117.08 | E79: 0.027 | F79: 0.0002 | G79: N2O factor is IPCC Tier 1
C80: Natural gas (dry) - Int. Comb. Engine 4 - cycle rich burn | D80: 117.08 | E80: 0.0061 | F80: 0.0002 | G80: N2O factor is IPCC Tier 1
C81: Methane | D81: 115.258 | G81: IPCC does not provide CH4 or N2O factors for this fuel
C82: Solid fossil
C83: Anthracite | D83: 227.4 | E83: 0.02 | F83: 0.0031 | G83: IPCC Tier 1 CH4 and N2O factors
C84: Bituminous coal Overfeed stoker boiler | D84: 205.3 | E84: 0.002 | F84: 0.0035 | G84: IPCC Tier 2 CH4 and N2O factors
C85: Bituminous coal Underfeed stoker boiler | D85: 205.3 | E85: 0.031 | F85: 0.0035 | G85: IPCC Tier 2 CH4 and N2O factors
C86: Bituminous coal - Pulverized Dry bottom, wall fired | D86: 205.3 | E86: 0.0015 | F86: 0.0035 | G86: IPCC Tier 2 CH4 and N2O factors
C87: Bituminous coal - Pulverized Dry bottom, tangential firing | D87: 205.3 | E87: 0.0015 | F87: 0.001 | G87: IPCC Tier 2 CH4 and N2O factors
C88: Bituminous coal - Pulverized Wet bottom | D88: 205.3 | E88: 0.002 | F88: 0.0035 | G88: IPCC Tier 2 CH4 and N2O factors
C89: Bituminous coal Spreader stoker boiler | D89: 205.3 | E89: 0.002 | F89: 0.0035 | G89: IPCC Tier 2 CH4 and N2O factors
C90: Bituminous coal - fluidized bed Circulating or bubbling | D90: 205.3 | E90: 0.002 | F90: 0.21 | G90: IPCC Tier 2 CH4 and N2O factors
C91: Sub-bituminous coal Overfeed stoker boiler | D91: 212.7 | E91: 0.002 | F91: 0.0035 | G91: IPCC Tier 2 CH4 and N2O factors
C92: Sub-bituminous coal Underfeed stoker boiler | D92: 212.7 | E92: 0.031 | F92: 0.0035 | G92: IPCC Tier 2 CH4 and N2O factors
C93: Sub-bituminous coal - fluidized bed Circulating or bubbling | D93: 212.7 | E93: 0.002 | F93: 0.21 | G93: IPCC Tier 2 CH4 and N2O factors
C94: Lignite | D94: 215.4 | E94: 0.02 | F94: 0.0031 | G94: IPCC Tier 1 CH4 and N2O factors
C95: Biofuels*
C96: Wood and wood waste | D96: 0 | E96: 0.027 | F96: 0.009 | G96: Median values determined from a data set originating from a variety of sources, see NCASI 2002.
C97: Pulping liquors | D97: 0 | E97: 0.0055 | F97: 0.0044 | G97: Median values determined from a data set originating from a variety of sources, see NCASI 2002.
C98: Biogas used in boilers or kilns | D98: 0 | E98: 0.006 | F98: 0 | G98: CH4 factor from NCASI 1981 N2O factor from IPCC discussion of formation requirements
C99: Other fuels
C100: Tires and tire derived fuel | D100: 189.538 | G100: IPCC does not provide CH4 or N2O factors for this fuel
C101: Municipal solid waste** | D101: 91.9 | G101: IPCC does not provide CH4 or N2O factors for this fuel
C102: * Wood and wood residuals contain ‘biogenic’ carbon. Under international greenhouse gas accounting methods developed by the IPCC, biogenic carbon is considered to be part of the natural carbon balance and does not add to atmospheric concentrations of carbon dioxide. Reporters may wish to use an emission factor of zero for wood, wood waste, and other biomass fuels in which the carbon is entirely biogenic. *Reporters wishing to compute quantities of "climate neutral" carbon dioxide emissions from biomass combustion may do so using the material in the "Supporting Info. on Biomass" sheet of this file. Estimates of climate neutral CO2 emissions are not included in the inventory results.
C103: ** This factor from DOE is based on the non-organic (non-biogenic) portion of material in municipal solid waste, and corresponds to a factor of 919 lb CO2/short ton of municipal solid waste and an average energy content of 5000 Btu/lb
C104: Other sources: | D104: National Council for Air and Stream Improvement, Inc. (NCASI). 1981. A study of the kraft process lime kiln total gaseous non-methane organic emissions. Technical Bulletin No. 358. Research Triangle Park, NC: National Council for Air and Stream Improvement, Inc.
D105: National Council for Air and Stream Improvement, Inc. (NCASI). 2002. Calculation Tools for Estimating Greenhouse Gas Emissions from Pulp and Paper Mills, Version 1.0. Research Triangle Park, NC: National Council for Air and Stream Improvement, Inc.

Sheet Mobile & Transportation
C1: Direct or Indirect Emissions - Mobile and Transportation Sources
C2: Note: Emissions from stationary sources are reported on the "Direct-Fuel Combust." spreadsheet immediately in front of this spreadsheet
C4: These spreadsheets include significant amounts of material copied from other WRI and WBCSD calculation tools. Intellectual property rights of the WRI and WBCSD calculation tools belong to WRI and WBCSD, unless stated otherwise.
C6: This worksheet can be used to calculate emissions from mobile combustion sources, including transportation. The worksheet contains two parts: Part 1 is used to calculate transportation emissions based on quantity of fuels consumed. Part 2 is used to calculate emissions from non-transportation mobile sources such as harvesting equipment For transportation emissions, if total fuel consumption is not known, but distance traveled and vehicle efficiency are known, the "Optional Calculator" (to the right of the Part 1 table) can be used to estimate fuel consumption based on distance and efficiency information. Be careful to avoid double counting! If emissions for a source are estimated using Part 1, do not also estimate emissions for this same source using Part 2. Do not include any combustion sources on this page that were already addressed in the "Direct - Fuel Combust." sheet.
B8: EXPLANATION OF CELL COLOR SCHEME
B9: User entry: Source / fuel description
B10: User entry: Fuel use / emission factor values
B11: Auto calculated value:
B15: Emissions from Transportation and Mobile Equipment
B17: Part 1. Emissions Associated with Transportation Based on Fuel Consumption | S17: =IF(AND(R21>0,R23>0),"Enter mpg OR l/100km, not both!","") ->  | V17: Suggested default emission factors for Part 1, Transportation:
B18: Note: Use this worksheet to calculate your emissions from amount of fuel consumed.
D19: Source Name | E19: Fuel Type | F19: Fraction of total emissions claimed as direct for this entry (between 0 and 1) | G19: Fuel Quantity (MMBtu HHV) | H19: Em. Factor (lb CO2/MMBtu HHV) | I19: Em. Factor (lb CH4/MMBtu HHV) | J19: Em. Factor (lb N2O/MMBtu HHV) | K19: Direct Emissions (tonne CO2) | L19: Direct Emissions (tonne CH4) | M19: Direct Emissions (tonne N2O) | N19: Indirect Emissions (tonne CO2) | O19: Indirect Emissions (tonne CH4) | P19: Indirect Emissions (tonne N2O) | R19: Optional Calculator | V19: CO2 Emission factors are from DOE Instructions for Form EIA-1605, Appendix B, March 2003 Although no CH4 or N2O emission factors are suggested here, the user is free to estimate emissions of these gases based on user-provided emission factors. One potential source of these factors is the Revised 1996 IPCC Guidelines for National Greenhouse Gas Inventories: Reference Manual (Vol. 3)
K20: =IF(G20="","",F20*G20*H20/2205) ->  | L20: =IF(G20="","",F20*G20*I20/2205) ->  | M20: =IF(G20="","",F20*G20*J20/2205) ->  | N20: =IF(G20="","",(1-F20)*G20*H20/2205) ->  | O20: =IF(G20="","",(1-F20)*G20*I20/2205) ->  | P20: =IF(G20="","",(1-F20)*G20*J20/2205) ->  | R20: 1000 | S20: = Distance traveled | T20: <<< enter this value
K21: =IF(G21="","",F21*G21*H21/2205) ->  | L21: =IF(G21="","",F21*G21*I21/2205) ->  | M21: =IF(G21="","",F21*G21*J21/2205) ->  | N21: =IF(G21="","",(1-F21)*G21*H21/2205) ->  | O21: =IF(G21="","",(1-F21)*G21*I21/2205) ->  | P21: =IF(G21="","",(1-F21)*G21*J21/2205) ->  | R21: 2 | S21: = miles per gallon
K22: =IF(G22="","",F22*G22*H22/2205) ->  | L22: =IF(G22="","",F22*G22*I22/2205) ->  | M22: =IF(G22="","",F22*G22*J22/2205) ->  | N22: =IF(G22="","",(1-F22)*G22*H22/2205) ->  | O22: =IF(G22="","",(1-F22)*G22*I22/2205) ->  | S22: OR | T22: <<< enter one of these | V22: Fuel type | W22: lb CO2/MMBtu HHV | X22: lb CH4/MMBtu HHV | Y22: lb N2O/MMBtu HHV | Z22: Higher Heating Values* | AA22: HHV Units | AB22: Typical Densities**
S23: = litres per 100 km | Z23: (HHV) | AB23: (lb/gal)
R24: =IF(AND(R21>0,R23>0),"Error",IF(R21>0,R20/R21,R20/100*R23)) -> 500 | S24: =IF(R21>0,"Gallons used","litres used") -> Gallons used | T24: <<< calculated | V24: Gasoline / petrol | W24: 156.425 | Z24: 0.1202 | AA24: MMBtu HHV/gallon | AB24: 6.17
V25: Kerosene | W25: 159.535 | Z25: 0.135 | AA25: MMBtu HHV/gallon | AB25: 6.76
V26: Jet Fuel | W26: 156.258 | Z26: 0.135 | AA26: MMBtu HHV/gallon
V27: Aviation gasoline | W27: 152.717 | Z27: 0.1202 | AA27: MMBtu HHV/gallon
V28: Diesel | W28: 161.386 | Z28: 0.1387 | AA28: MMBtu HHV/gallon | AB28: 7.1
V29: Distillate fuel oil No.1 | W29: 161.386 | Z29: 0.1387 | AA29: MMBtu HHV/gallon | AB29: 7.05
V30: Distillate fuel oil No.2 | W30: 161.386 | Z30: 0.1387 | AA30: MMBtu HHV/gallon | AB30: 7.05
V31: Fuel oil #4 | W31: 161.386 | Z31: 0.1387 | AA31: MMBtu HHV/gallon | AB31: 7.59
V32: Residual Fuel oil#5 | W32: 173.906 | Z32: 0.1497 | AA32: MMBtu HHV/gallon | AB32: 7.93
V33: Residual Fuel oil#6 | W33: 173.906 | Z33: 0.1497 | AA33: MMBtu HHV/gallon | AB33: 8.45
V34: LPG | W34: 139.039 | Z34: 0.0921 | AA34: MMBtu HHV/gallon | AB34: 4.52
V35: Propane | W35: 139.178 | Z35: 0.091 | AA35: MMBtu HHV/gallon | AB35: 4.24
V36: Natural gas | W36: 117.08 | Z36: 1.03 | AA36: MMBtu HHV/ 1000 ft3
V37: Methane | W37: 115.258 | Z37: 1.01 | AA37: MMBtu HHV/ 1000 ft3
V38: Anthracite | W38: 227.4 | Z38: 16.94 | AA38: MMBtu HHV/short ton
V39: Bituminous coal | W39: 205.3 | Z39: 24.02 | AA39: MMBtu HHV/short ton
V40: Sub-bituminous coal | W40: 212.7 | Z40: 17.47 | AA40: MMBtu HHV/short ton
V41: Lignite | W41: 215.4 | Z41: 12.96 | AA41: MMBtu HHV/short ton
V43: * Calculated from information in DOE Instructions for Form EIA-1605, Appendix B, March 2003
V44: **Source: American Petroleum Institute (API), Compendium of Greenhouse Gas Emissions Estimation Methodologies for the Oil & Gas Industry (Pilot Test Version), 2001
K45: DIRECT EMISSIONS | N45: INDIRECT EMISSIONS | V45: *** From DOE Instructions for Form EIA-1605, March 2003
K46: tonnes CO2 | L46: tonnes CH4 | M46: tonnes N2O | N46: tonnes CO2 | O46: tonnes CH4 | P46: tonnes N2O
C47: Total transportation emissons based on fuel use >>> | K47: =SUM(K20:K44) -> 0 | L47: 0 | M47: 0 | N47: 0 | O47: 0 | P47: 0
C53: Emissions from Transportation and Mobile Equipment
C54: Part 2. Emissions Associated with Mobile Equipment Based on Fuel Consumption
C55: Emissions - Fuel Combustion in mobile devices such as harvesting equipment
E56: Step 1 | G56: Step 2 | J56: Step 3 | M56: Step 4
E57: A1 | F57: A2 | G57: B | H57: C | I57: D | J57: E | K57: F | L57: G | M57: H | N57: I | O57: J
E58: Fraction of total emissions claimed as direct for this entry (between 0 and 1) | F58: Quantity of fuel burned | G58: CO2 emission factor Suggested default emission factors shown at right | H58: CH4 emission factor Suggested default emission factors shown at right | I58: N2O emission factor Suggested default emission factors shown at right | J58: DIRECT CO2 emissions in metric tonnes | K58: DIRECT CH4 emissions in metric tonnes | L58: DIRECT N2O emissions in metric tonnes | M58: INDIRECT CO2 emissions in metric tonnes | N58: INDIRECT CH4 emissions in metric tonnes | O58: INDIRECT N2O emissions in metric tonnes
F59: units of MMBtu HHV | G59: lb CO2/MMBtu HHV | H59: lb CH4/MMBtu HHV | I59: lb N2O/MMBtu HHV | J59: E = A1 * A2 * B / 2205 | K59: F = A1 * A2 * C / 2205 | L59: G = A1 * A2 * D / 2205 | M59: H = (1-A1) * A2 * B / 2205 | N59: I = (1-A1) * A2 * C / 2205 | O59: J = (1-A1) * A2 * D / 2205
C60: Example: Source 1 | D60: Natural gas | E60: 0.75 | F60: 1000 | G60: 117.08 | H60: 0.01 | I60: 0.0002 | J60: =IF(F60="","",E60*F60*G60/2205) -> 39.82312925 | K60: =IF(F60="","",E60*F60*H60/2205) -> 0.003401360544 | L60: =IF(F60="","",E60*F60*I60/2205) -> 6.802721088e-05 | M60: =IF(F60="","",(1-E60)*F60*G60/2205) -> 13.27437642 | N60: =IF(F60="","",(1-E60)*F60*H60/2205) -> 0.001133786848 | O60: =IF(F60="","",(1-E60)*F60*I60/2205) -> 2.267573696e-05
C61: Source description | D61: Fuel type | E61: Fraction as Direct | F61: Fuel Quantity | G61: Units | H61: Em. factor | I61: Units | J61: Direct CO2 (tonne) | K61: Direct CH4 (tonne) | L61: Direct N2O (tonne) | M61: Indirect CO2 (tonne) | N61: Indirect CH4 (tonne) | O61: Indirect N2O (tonne) | S61: Suggested default emission factors for Part 2, Mobile Equipment:
J62: =IF(F62="","",E62*F62*G62/2205) ->  | K62: =IF(F62="","",E62*F62*H62/2205) ->  | L62: =IF(F62="","",E62*F62*I62/2205) ->  | M62: =IF(F62="","",(1-E62)*F62*G62/2205) ->  | N62: =IF(F62="","",(1-E62)*F62*H62/2205) ->  | O62: =IF(F62="","",(1-E62)*F62*I62/2205) -> 
J63: =IF(F63="","",E63*F63*G63/2205) ->  | K63: =IF(F63="","",E63*F63*H63/2205) ->  | L63: =IF(F63="","",E63*F63*I63/2205) ->  | M63: =IF(F63="","",(1-E63)*F63*G63/2205) ->  | N63: =IF(F63="","",(1-E63)*F63*H63/2205) ->  | O63: =IF(F63="","",(1-E63)*F63*I63/2205) ->  | S63: Fuel type | U63: lb CO2/MMBtu HHV | V63: lb CH4/MMBtu HHV | W63: lb N2O/MMBtu HHV | X63: Higher Heating Values (HHV)* | Y63: HHV Units | Z63: Typical Densities (lb/gal)**
S64: Gasoline / petrol Mobile 4-stroke engines | U64: 156.425 | V64: 0.1 | W64: 0.004 | X64: 0.1202 | Y64: MMBtu HHV/gallon | Z64: 6.17
S65: Gasoline / petrol Mobile 2-stroke engines, general | U65: 156.425 | V65: 0.29 | W65: 0.0009 | X65: 0.1202 | Y65: MMBtu HHV/gallon | Z65: 6.17
S66: Gasoline / petrol Mobile 2-stroke engines, forestry | U66: 156.425 | V66: 0.38 | W66: 0.0009 | X66: 0.1202 | Y66: MMBtu HHV/gallon | Z66: 6.17
S67: Kerosene, Mobile sources | U67: 159.535 | X67: 0.135 | Y67: MMBtu HHV/gallon | Z67: 6.76
S68: Diesel, Mobile sources | U68: 161.386 | V68: 0.009 | W68: 0.066 | X68: 0.1387 | Y68: MMBtu HHV/gallon | Z68: 7.1
S69: Distillate fuel, No.1, Mobile sources | U69: 161.386 | X69: 0.1387 | Y69: MMBtu HHV/gallon | Z69: 7.05
S70: Distillate fuel, No. 2, Mobile sources | U70: 161.386 | X70: 0.1387 | Y70: MMBtu HHV/gallon | Z70: 7.05
S71: No. 4 fuel oil, Mobile sources | U71: 161.386 | X71: 0.1387 | Y71: MMBtu HHV/gallon | Z71: 7.59
S72: LPG, Mobile sources | U72: 139.039 | X72: 0.0921 | Y72: MMBtu HHV/gallon | Z72: 4.52
S73: Propane, Mobile sources | U73: 139.178 | X73: 0.091 | Y73: MMBtu HHV/gallon | Z73: 4.24
S74: Natural gas (dry), Mobile sources | U74: 117.08 | V74: 0.01 | W74: 0.0002 | X74: 1.03 | Y74: MMBtu HHV/1000 ft3
S78: CO2 Emission factors are from DOE Instructions for Form EIA-1605, Appendix B, March 2003
S79: CH4 or N2O emission factors, where listed, are Tier 2 from Revised 1996 IPCC Guidelines for National Greenhouse Gas Inventories: Reference Manual (Vol. 3), Table 1-49, except for Natural Gas factors, which are IPCC Tier 1
S83: * Calculated from information in DOE Instructions for Form EIA-1605, Appendix B, March 2003
S84: **Source: American Petroleum Institute (API), Compendium of Greenhouse Gas Emissions Estimation Methodologies for the Oil & Gas Industry (Pilot Test Version), 2001
J87: DIRECT EMISSIONS | M87: INDIRECT EMISSIONS
J88: tonnes CO2 | K88: tonnes CH4 | L88: tonnes N2O | M88: tonnes CO2 | N88: tonnes CH4 | O88: tonnes N2O
C89: Total emissions from mobile equipment: | J89: =SUM(J62:J86) -> 0 | K89: 0 | L89: 0 | M89: 0 | N89: 0 | O89: 0
J95: Direct Emissions | N95: Indirect Emissions
H96: Grand Total of all Mobil and Transportation Emissions (sum of results from Parts 1 and 2): | J96: tonnes CO2 | K96: tonnes CH4 | L96: tonnes N2O | M96: tonnes CO2 | N96: tonnes CH4 | O96: tonnes N2O
H97: Note: Do not double count emissions by estimating the same fuel consumption by two different methods above. | J97: =SUM(K47,J89) -> 0 | K97: 0 | L97: 0 | M97: 0 | N97: 0 | O97: 0

Sheet Waste Mngmt.
C1: Direct or Indirect Emissions - Waste Management
C2: For landfills and anaerobic wastewater treatment and sludge digestion systems
C3: Note: Scroll down the page to find the spreadsheet for anaerobic treatment systems
B5: These spreadsheets include significant amounts of material copied from other WRI and WBCSD calculation tools. Intellectual property rights of the WRI and WBCSD calculation tools belong to WRI and WBCSD, unless stated otherwise.
B8: EXPLANATION OF CELL COLOR SCHEME
B9: User entry: Source description
B10: User entry: Data and parameter values
B11: Auto calculated value:
C14: Methane emissions from landfills Note: Use only one of the following methods for each landfill.
C15: Method 1 - For landfills with low permeability caps and effective gas recovery systems where measurements are made of amounts of gas collected
E17: Step 1
E18: A1 | F18: A2 | G18: B | H18: C | I18: D | J18: E | K18: F | L18: G | M18: H
E19: Fraction of total emissions claimed as direct for this entry (between 0 and 1) | F19: Quantity of gas collected [dry standard cubic meters/yr] | G19: Efficiency of gas collection system [default = 0.75] | H19: Fraction of collected gas that is burned [default = 1.0] | I19: Methane content of gas [default = 0.5] | J19: Fraction of uncollected methane that oxidizes in the landfill cover [default = 0.1] | K19: Quantity of methane released [dry standard cubic meters/yr] | L19: Direct Methane emissions in metric tonnes | M19: Indirect Methane emissions in metric tonnes
K20: F=((A2/B)*(1-B)*D*(1-E))+(A2*D*(1-C)) | L20: G = A1 * F * [ 0.72 kg / standard cubic meter ] / 1000 | M20: H = (1-A1) * F * [ 0.72 kg / standard cubic meter ] / 1000
C21: Example: Landfill A | D21: Mill sludge, ash and misc. | E21: 0.5 | F21: 820000 | G21: 0.75 | H21: 0.9 | I21: 0.47 | J21: 0.1 | K21: =((F21/G21)*(1-G21)*I21*(1-J21))+(F21*I21*(1-H21)) -> 154160 | L21: =E21*K21*0.72/1000 -> 55.4976 | M21: =(1-E21)*K21*0.72/1000 -> 55.4976
C22: Landfill description | D22: Waste type | E22: Fraction as direct | F22: Gas Quantity | G22: Collect. Eff. | H22: Fract. burned | I22: CH4 content | J22: Fract. ox. in cover | K22: CH4 released | L22: Direct emissions (tonne CH4) | M22: Indirect emissions (tonne CH4)
K23: =IF(F23=0,"",((F23/G23)*(1-G23)*I23*(1-J23))+(F23*I23*(1-H23))) ->  | L23: =IF(F23="","",E23*K23*0.72/1000) ->  | M23: =IF(F23="","",(1-E23)*K23*0.72/1000) -> 
K24: =IF(F24=0,"",((F24/G24)*(1-G24)*I24*(1-J24))+(F24*I24*(1-H24))) ->  | L24: =IF(F24="","",E24*K24*0.72/1000) ->  | M24: =IF(F24="","",(1-E24)*K24*0.72/1000) -> 
K25: =IF(F25=0,"",((F25/G25)*(1-G25)*I25*(1-J25))+(F25*I25*(1-H25))) ->  | L25: =IF(F25="","",E25*K25*0.72/1000) ->  | M25: =IF(F25="","",(1-E25)*K25*0.72/1000) -> 
K26: =IF(F26=0,"",((F26/G26)*(1-G26)*I26*(1-J26))+(F26*I26*(1-H26))) ->  | L26: =IF(F26="","",E26*K26*0.72/1000) ->  | M26: =IF(F26="","",(1-E26)*K26*0.72/1000) -> 
K27: =IF(F27=0,"",((F27/G27)*(1-G27)*I27*(1-J27))+(F27*I27*(1-H27))) ->  | L27: =IF(F27="","",E27*K27*0.72/1000) ->  | M27: =IF(F27="","",(1-E27)*K27*0.72/1000) -> 
L28: Direct | M28: Indirect
H29: Step 2: Sum mill landfill methane emissions from Method 1: | L29: =SUM(L23:L27) -> 0 | M29: =SUM(M23:M27) -> 0 | N29: metric tonnes CH4
C30: Method 2 - For landfills that cannot use Method 1.
C31: Method 2 is applicable to landfills where the amounts of waste deposited are reasonably constant from year-to-year and the landfill design has not been changed in ways that would substantially alter landfill gas releases.
E33: Step 1 | L33: Step 2
E34: A1 | F34: A2 | G34: B | H34: C | I34: D | J34: E | K34: F | L34: G | M34: H | N34: I | O34: J | P34: K | Q34: L
E35: Fraction of total emissions claimed as direct for this entry (between 0 and 1) | F35: Annual waste deposits [Wet metric tons / year] | G35: Ultimate Methane Potential, Lo, in cubic meters methane per wet metric ton waste [default for mill waste = 100 m3/wet Mg] | H35: First order methane generation rate constant, k [default for mill waste = 0.03 per year | I35: Years since landfill opened | J35: Years since landfill stopped receiving waste | K35: Quantity of methane generated [dry standard cubic meters/yr] | L35: Fraction of uncollected methane that oxidizes in the landfill cover [default = 0.1] | M35: Fraction of landfill gas that is collected | N35: Fraction of collected landfill gas that is burned | O35: Methane emissions in cubic meters per year | P35: Direct Methane emissions in metric tonnes | Q35: Indirect Methane emissions in metric tonnes
K36: F = A2 * B * (e^(-k*E) - e^(-k*D)) | O36: J = (F*(1-H)*(1-G))+(F*H*(1-I)) | P36: K = A1 * J * [ 0.72 kg / standard cubic meter ] / 1000 | Q36: L = (1-A1) * J * [ 0.72 kg / standard cubic meter ] / 1000
C37: Example: Landfill A | D37: Mill sludge, ash and misc. | E37: 0.25 | F37: 17500 | G37: 100 | H37: 0.03 | I37: 20 | J37: 0 | K37: =F37*G37*(EXP(-H37*J37)-EXP(-H37*I37)) -> 789579.6368 | L37: 0.1 | M37: 0 | N37: 0 | O37: =(K37*(1-M37)*(1-L37))+(K37*M37*(1-N37)) -> 710621.6732 | P37: =E37*O37*0.72/1000 -> 127.9119012 | Q37: =(1-E37)*O37*0.72/1000 -> 383.7357035
C38: Landfill description | D38: Waste type | E38: Fraction as direct | F38: Deposit (tonne/yr) | G38: Lo | H38: 1st order rate const | I38: Yrs since opened | J38: Yrs since closed | K38: CH4 generated (dry std m3) | L38: Fract. ox. in cover | M38: Fract. collected | N38: Fraction burned | P38: Direct emissions (tonne CH4) | Q38: Indirect emissions (tonne CH4)
K39: =IF(F39="","",F39*G39*(EXP(-H39*J39)-EXP(-H39*I39))) ->  | O39: =IF(K39="","",(K39*(1-M39)*(1-L39))+(K39*M39*(1-N39))) ->  | P39: =IF(O39="","",E39*O39*0.72/1000) ->  | Q39: =IF(O39="","",(1-E39)*O39*0.72/1000) -> 
K40: =IF(F40="","",F40*G40*(EXP(-H40*J40)-EXP(-H40*I40))) ->  | O40: =IF(K40="","",(K40*(1-M40)*(1-L40))+(K40*M40*(1-N40))) ->  | P40: =IF(O40="","",E40*O40*0.72/1000) ->  | Q40: =IF(O40="","",(1-E40)*O40*0.72/1000) -> 
K41: =IF(F41="","",F41*G41*(EXP(-H41*J41)-EXP(-H41*I41))) ->  | O41: =IF(K41="","",(K41*(1-M41)*(1-L41))+(K41*M41*(1-N41))) ->  | P41: =IF(O41="","",E41*O41*0.72/1000) ->  | Q41: =IF(O41="","",(1-E41)*O41*0.72/1000) -> 
K42: =IF(F42="","",F42*G42*(EXP(-H42*J42)-EXP(-H42*I42))) ->  | O42: =IF(K42="","",(K42*(1-M42)*(1-L42))+(K42*M42*(1-N42))) ->  | P42: =IF(O42="","",E42*O42*0.72/1000) ->  | Q42: =IF(O42="","",(1-E42)*O42*0.72/1000) -> 
K43: =IF(F43="","",F43*G43*(EXP(-H43*J43)-EXP(-H43*I43))) ->  | O43: =IF(K43="","",(K43*(1-M43)*(1-L43))+(K43*M43*(1-N43))) ->  | P43: =IF(O43="","",E43*O43*0.72/1000) ->  | Q43: =IF(O43="","",(1-E43)*O43*0.72/1000) -> 
P44: Direct | Q44: Indirect
K45: Step 3: Sum mill landfill methane emissions from Method 2: | P45: =SUM(P39:P43) -> 0 | Q45: =SUM(Q39:Q43) -> 0 | R45: metric tonnes CH4
P46: Direct | Q46: Indirect
C47: Sum of emissions from landfills >> | K47: Sum of mill landfill methane emissions from Methods 1, 2 & 3: | P47: =IF(OR(G56="Invalid Year",ISERROR(G56)),+L29+P45,+L29+P45+G56) -> 0 | Q47: =IF(OR(G56="Invalid Year",ISERROR(G56)),+M29+Q45,+M29+Q45+G57) -> 0 | R47: metric tonnes CH4
C49: Method 3 - For landfills that cannot use Methods 1 or 2.
C50: Method 3 is applicable to landfills where the amounts of waste deposited vary substantially from year-to-year and the landfill design has changed in ways that would substantially alter landfill gas releases. This table for Method 3 can only estimate emissions from a single landfill. If emissions from multiple landfills are to be estimated, make a separate copy of this Excel worksheet for each additional landfill to be considered. In this case, the user will have to manually sum all landfill emission estimates and enter this value in the appropriate cell of the "Summary Table" worksheet.
C51: Landfill description | D51: Waste type | E51: Fraction of total emissions claimed as direct for this entry (between 0 and 1)
C54: Last year that material was deposited in landfill (or that data is available):
C55: Year of interest for emission estimate:
C56: Estimated Direct Emissions [metric tonnes CH4]: | G56: =IF(G55>=G53,IF(ISERROR(LOOKUP(G55,H58:BE58,H60:BE60)),0,E52*LOOKUP(G55,H58:BE58,H60:BE60)),"Invalid Year") -> 0 | H56: metric tonnes CH4
C57: Estimated Indirect Emissions [metric tonnes CH4]: | G57: =IF(G55>=G53,IF(ISERROR(LOOKUP(G55,H58:BE58,H60:BE60)),0,(1-E52)*LOOKUP(G55,H58:BE58,H60:BE60)),"Invalid Year") -> 0 | H57: metric tonnes CH4
G58: Year Emissions Estimated | H58: =+IF(G53="","",G53) ->  | I58: =+IF(ISERROR(AND(H58+1>$G54,H58+1>$G55)),"",IF((AND(H58+1>$G54,H58+1>$G55)),"",H58+1)) ->  | J58: =+IF(ISERROR(AND(I58+1>$G54,I58+1>$G55)),"",IF((AND(I58+1>$G54,I58+1>$G55)),"",I58+1)) -> 
G59: Methane emissions in metric tonnes CO2 equivalents | H59: =IF(ISERROR(H60*21),"",H60*21) -> 0 | I59: =IF(ISERROR(I60*21),"",I60*21) -> 0 | J59: 0 | K59: 0 | L59: 0 | M59: 0 | N59: 0 | O59: 0 | P59: 0 | Q59: 0 | R59: 0 | S59: 0 | T59: 0 | U59: 0 | V59: 0 | W59: 0 | X59: 0 | Y59: 0 | Z59: 0 | AA59: 0 | AB59: 0 | AC59: 0 | AD59: 0 | AE59: 0 | AF59: 0 | AG59: 0 | AH59: 0 | AI59: 0 | AJ59: 0 | AK59: 0 | AL59: 0 | AM59: 0 | AN59: 0 | AO59: 0 | AP59: 0 | AQ59: 0 | AR59: 0 | AS59: 0 | AT59: 0 | AU59: 0 | AV59: 0 | AW59: 0 | AX59: 0 | AY59: 0 | AZ59: 0 | BA59: 0 | BB59: 0 | BC59: 0 | BD59: 0 | BE59: 0
G60: Methane emissions in metric tonnes CH4 | H60: =IF(ISERROR(H61*0.0007167),"",H61*0.0007167) -> 0 | I60: =IF(ISERROR(I61*0.0007167),"",I61*0.0007167) -> 0 | J60: 0 | K60: 0 | L60: 0 | M60: 0 | N60: 0 | O60: 0 | P60: 0 | Q60: 0 | R60: 0 | S60: 0 | T60: 0 | U60: 0 | V60: 0 | W60: 0 | X60: 0 | Y60: 0 | Z60: 0 | AA60: 0 | AB60: 0 | AC60: 0 | AD60: 0 | AE60: 0 | AF60: 0 | AG60: 0 | AH60: 0 | AI60: 0 | AJ60: 0 | AK60: 0 | AL60: 0 | AM60: 0 | AN60: 0 | AO60: 0 | AP60: 0 | AQ60: 0 | AR60: 0 | AS60: 0 | AT60: 0 | AU60: 0 | AV60: 0 | AW60: 0 | AX60: 0 | AY60: 0 | AZ60: 0 | BA60: 0 | BB60: 0 | BC60: 0 | BD60: 0 | BE60: 0
G61: Methane emissions in cubic meters per year | H61: =IF(ISERROR(H62*((1-H64)*(1-H63)+(H64*(1-H65)))),"",H62*((1-H64)*(1-H63)+(H64*(1-H65)))) -> 0 | I61: =IF(ISERROR(I62*((1-I64)*(1-I63)+(I64*(1-I65)))),"",I62*((1-I64)*(1-I63)+(I64*(1-I65)))) -> 0 | J61: 0 | K61: 0 | L61: 0 | M61: 0 | N61: 0 | O61: 0 | P61: 0 | Q61: 0 | R61: 0 | S61: 0 | T61: 0 | U61: 0 | V61: 0 | W61: 0 | X61: 0 | Y61: 0 | Z61: 0 | AA61: 0 | AB61: 0 | AC61: 0 | AD61: 0 | AE61: 0 | AF61: 0 | AG61: 0 | AH61: 0 | AI61: 0 | AJ61: 0 | AK61: 0 | AL61: 0 | AM61: 0 | AN61: 0 | AO61: 0 | AP61: 0 | AQ61: 0 | AR61: 0 | AS61: 0 | AT61: 0 | AU61: 0 | AV61: 0 | AW61: 0 | AX61: 0 | AY61: 0 | AZ61: 0 | BA61: 0 | BB61: 0 | BC61: 0 | BD61: 0 | BE61: 0
G62: Quantity of methane generated [dry standard cubic meters/yr] | H62: =IF(ISERROR(SUM(H$66:H$115)),"",SUM(H$66:H$115)) -> 0 | I62: =IF(ISERROR(SUM(I$66:I$115)),"",SUM(I$66:I$115)) -> 0 | J62: 0 | K62: 0 | L62: 0 | M62: 0 | N62: 0 | O62: 0 | P62: 0 | Q62: 0 | R62: 0 | S62: 0 | T62: 0 | U62: 0 | V62: 0 | W62: 0 | X62: 0 | Y62: 0 | Z62: 0 | AA62: 0 | AB62: 0 | AC62: 0 | AD62: 0 | AE62: 0 | AF62: 0 | AG62: 0 | AH62: 0 | AI62: 0 | AJ62: 0 | AK62: 0 | AL62: 0 | AM62: 0 | AN62: 0 | AO62: 0 | AP62: 0 | AQ62: 0 | AR62: 0 | AS62: 0 | AT62: 0 | AU62: 0 | AV62: 0 | AW62: 0 | AX62: 0 | AY62: 0 | AZ62: 0 | BA62: 0 | BB62: 0 | BC62: 0 | BD62: 0 | BE62: 0
D63: Data for Method 3 - Landfills | G63: Fraction of uncollected methane that oxidizes in the landfill cover [default = 0.1]
G64: Fraction of landfill gas that is collected
C65: Year of Placement (auto-calculated from information entered above in cells G53 and G54) | D65: Quantity Placed [Wet metric tons] | E65: Ultimate Methane Potential, Lo, [default for mill waste Lo =100m3/wet Mg] | F65: First order methane generation rate constant, k [default for mill waste k = 0.03/yr] | G65: Fraction of collected landfill gas that is burned
C66: =+IF(H$58<=$G$54,H$58,"") ->  | H66: =IF(ISERROR($F66*$E66*EXP(-$F66*(H$58-$C66+0.5))*$D66),"",$F66*$E66*EXP(-$F66*(H$58-$C66+0.5))*$D66) ->  | AN66: =IF(ISERROR($F66*$E66*EXP(-$F66*(AN$58-$C66+0.5))*$D66),"",$F66*$E66*EXP(-$F66*(AN$58-$C66+0.5))*$D66) -> 
C67: =+IF(I$58<=$G$54,I$58,"") ->  | I67: =IF(ISERROR($F67*$E67*EXP(-$F67*(I$58-$C67+0.5))*$D67),"",$F67*$E67*EXP(-$F67*(I$58-$C67+0.5))*$D67) ->  | AD67: =IF(ISERROR($F67*$E67*EXP(-$F67*(AD$58-$C67+0.5))*$D67),"",$F67*$E67*EXP(-$F67*(AD$58-$C67+0.5))*$D67) ->  | AT67: =IF(ISERROR($F67*$E67*EXP(-$F67*(AT$58-$C67+0.5))*$D67),"",$F67*$E67*EXP(-$F67*(AT$58-$C67+0.5))*$D67) ->  | AW67: =IF(ISERROR($F67*$E67*EXP(-$F67*(AW$58-$C67+0.5))*$D67),"",$F67*$E67*EXP(-$F67*(AW$58-$C67+0.5))*$D67) -> 
C68: =+IF(J$58<=$G$54,J$58,"") ->  | J68: =IF(ISERROR($F68*$E68*EXP(-$F68*(J$58-$C68+0.5))*$D68),"",$F68*$E68*EXP(-$F68*(J$58-$C68+0.5))*$D68) ->  | AD68: =IF(ISERROR($F68*$E68*EXP(-$F68*(AD$58-$C68+0.5))*$D68),"",$F68*$E68*EXP(-$F68*(AD$58-$C68+0.5))*$D68) -> 
C69: =+IF(K$58<=$G$54,K$58,"") ->  | K69: =IF(ISERROR($F69*$E69*EXP(-$F69*(K$58-$C69+0.5))*$D69),"",$F69*$E69*EXP(-$F69*(K$58-$C69+0.5))*$D69) -> 
C70: =+IF(L$58<=$G$54,L$58,"") ->  | L70: =IF(ISERROR($F70*$E70*EXP(-$F70*(L$58-$C70+0.5))*$D70),"",$F70*$E70*EXP(-$F70*(L$58-$C70+0.5))*$D70) -> 
C71: =+IF(M$58<=$G$54,M$58,"") ->  | M71: =IF(ISERROR($F71*$E71*EXP(-$F71*(M$58-$C71+0.5))*$D71),"",$F71*$E71*EXP(-$F71*(M$58-$C71+0.5))*$D71) -> 
C72: =+IF(N$58<=$G$54,N$58,"") ->  | N72: =IF(ISERROR($F72*$E72*EXP(-$F72*(N$58-$C72+0.5))*$D72),"",$F72*$E72*EXP(-$F72*(N$58-$C72+0.5))*$D72) -> 
C73: =+IF(O$58<=$G$54,O$58,"") ->  | O73: =IF(ISERROR($F73*$E73*EXP(-$F73*(O$58-$C73+0.5))*$D73),"",$F73*$E73*EXP(-$F73*(O$58-$C73+0.5))*$D73) -> 
C74: =+IF(P$58<=$G$54,P$58,"") ->  | P74: =IF(ISERROR($F74*$E74*EXP(-$F74*(P$58-$C74+0.5))*$D74),"",$F74*$E74*EXP(-$F74*(P$58-$C74+0.5))*$D74) -> 
C75: =+IF(Q$58<=$G$54,Q$58,"") ->  | Q75: =IF(ISERROR($F75*$E75*EXP(-$F75*(Q$58-$C75+0.5))*$D75),"",$F75*$E75*EXP(-$F75*(Q$58-$C75+0.5))*$D75) -> 
C76: =+IF(R$58<=$G$54,R$58,"") ->  | R76: =IF(ISERROR($F76*$E76*EXP(-$F76*(R$58-$C76+0.5))*$D76),"",$F76*$E76*EXP(-$F76*(R$58-$C76+0.5))*$D76) -> 
C77: =+IF(S$58<=$G$54,S$58,"") ->  | S77: =IF(ISERROR($F77*$E77*EXP(-$F77*(S$58-$C77+0.5))*$D77),"",$F77*$E77*EXP(-$F77*(S$58-$C77+0.5))*$D77) -> 
C78: =+IF(T$58<=$G$54,T$58,"") ->  | T78: =IF(ISERROR($F78*$E78*EXP(-$F78*(T$58-$C78+0.5))*$D78),"",$F78*$E78*EXP(-$F78*(T$58-$C78+0.5))*$D78) ->  | AC78: =IF(ISERROR($F78*$E78*EXP(-$F78*(AC$58-$C78+0.5))*$D78),"",$F78*$E78*EXP(-$F78*(AC$58-$C78+0.5))*$D78) ->  | AD78: =IF(ISERROR($F78*$E78*EXP(-$F78*(AD$58-$C78+0.5))*$D78),"",$F78*$E78*EXP(-$F78*(AD$58-$C78+0.5))*$D78) -> 
C79: =+IF(U$58<=$G$54,U$58,"") ->  | U79: =IF(ISERROR($F79*$E79*EXP(-$F79*(U$58-$C79+0.5))*$D79),"",$F79*$E79*EXP(-$F79*(U$58-$C79+0.5))*$D79) -> 
C80: =+IF(V$58<=$G$54,V$58,"") ->  | V80: =IF(ISERROR($F80*$E80*EXP(-$F80*(V$58-$C80+0.5))*$D80),"",$F80*$E80*EXP(-$F80*(V$58-$C80+0.5))*$D80) -> 
C81: =+IF(W$58<=$G$54,W$58,"") ->  | W81: =IF(ISERROR($F81*$E81*EXP(-$F81*(W$58-$C81+0.5))*$D81),"",$F81*$E81*EXP(-$F81*(W$58-$C81+0.5))*$D81) -> 
C82: =+IF(X$58<=$G$54,X$58,"") ->  | X82: =IF(ISERROR($F82*$E82*EXP(-$F82*(X$58-$C82+0.5))*$D82),"",$F82*$E82*EXP(-$F82*(X$58-$C82+0.5))*$D82) -> 
C83: =+IF(Y$58<=$G$54,Y$58,"") -> 
C84: =+IF(Z$58<=$G$54,Z$58,"") -> 
C85: =+IF(AA$58<=$G$54,AA$58,"") -> 
C86: =+IF(AB$58<=$G$54,AB$58,"") ->  | AT86: =IF(ISERROR($F86*$E86*EXP(-$F86*(AT$58-$C86+0.5))*$D86),"",$F86*$E86*EXP(-$F86*(AT$58-$C86+0.5))*$D86) -> 
C87: =+IF(AC$58<=$G$54,AC$58,"") -> 
C88: =+IF(AD$58<=$G$54,AD$58,"") -> 
C89: =+IF(AE$58<=$G$54,AE$58,"") -> 
C90: =+IF(AF$58<=$G$54,AF$58,"") -> 
C91: =+IF(AG$58<=$G$54,AG$58,"") -> 
C92: =+IF(AH$58<=$G$54,AH$58,"") -> 
C93: =+IF(AI$58<=$G$54,AI$58,"") -> 
C94: =+IF(AJ$58<=$G$54,AJ$58,"") ->  | AJ94: =IF(ISERROR($F94*$E94*EXP(-$F94*(AJ$58-$C94+0.5))*$D94),"",$F94*$E94*EXP(-$F94*(AJ$58-$C94+0.5))*$D94) -> 
C95: =+IF(AK$58<=$G$54,AK$58,"") -> 
C96: =+IF(AL$58<=$G$54,AL$58,"") -> 
C97: =+IF(AM$58<=$G$54,AM$58,"") -> 
C98: =+IF(AN$58<=$G$54,AN$58,"") -> 
C99: =+IF(AO$58<=$G$54,AO$58,"") -> 
C100: =+IF(AP$58<=$G$54,AP$58,"") -> 
C101: =+IF(AQ$58<=$G$54,AQ$58,"") -> 
C102: =+IF(AR$58<=$G$54,AR$58,"") -> 
C103: =+IF(AS$58<=$G$54,AS$58,"") -> 
C104: =+IF(AT$58<=$G$54,AT$58,"") -> 
C105: =+IF(AU$58<=$G$54,AU$58,"") ->  | AU105: =IF(ISERROR($F105*$E105*EXP(-$F105*(AU$58-$C105+0.5))*$D105),"",$F105*$E105*EXP(-$F105*(AU$58-$C105+0.5))*$D105) -> 
C106: =+IF(AV$58<=$G$54,AV$58,"") -> 
C107: =+IF(AW$58<=$G$54,AW$58,"") -> 
C108: =+IF(AX$58<=$G$54,AX$58,"") -> 
C109: =+IF(AY$58<=$G$54,AY$58,"") -> 
C110: =+IF(AZ$58<=$G$54,AZ$58,"") -> 
C111: =+IF(BA$58<=$G$54,BA$58,"") -> 
C112: =+IF(BB$58<=$G$54,BB$58,"") -> 
C113: =+IF(BC$58<=$G$54,BC$58,"") -> 
C114: =+IF(BD$58<=$G$54,BD$58,"") -> 
C115: =+IF(BE$58<=$G$54,BE$58,"") -> 
C124: Methane emissions from anaerobic wastewater treatment or sludge digestion systems Note: Use only one of the following methods for each source.
C125: Method 1 - For anaerobic wastewater treatment and sludge digestion systems where gas is collected
C126: NOTE: If the gas collection system is highly efficient and all gas is burned, the direct GHG emissions can be assumed to be zero.
E127: Step 1
E128: A1 | F128: A2 | G128: B | H128: C | I128: D | J128: E | K128: F | L128: G
E129: Fraction of total emissions claimed as direct for this entry (between 0 and 1) | F129: Quantity of gas collected [dry standard cubic meters/yr] | G129: Efficiency of gas collection system [default = 1.0] | H129: Fraction of collected gas that is burned [default = 1.0] | I129: Methane content of gas [default = 0.5] | J129: Quantity of methane released [dry standard cubic meters/yr] | K129: Direct Methane emissions in metric tonnes CH4 | L129: Indirect Methane emissions in metric tonnes CH4
J130: E=((A2/B)*(1-B)*D)+(A2*D*(1-C)) | K130: F = A1 * E * [ 0.72 kg / standard cubic meter ] / 1000 | L130: G = (1-A1) * E * [ 0.72 kg / standard cubic meter ] / 1000
C131: Example: System A | D131: Anaerobic treatment system | E131: 0.7 | F131: 1000 | G131: 0.9 | H131: 0.5 | I131: 0.5 | J131: =((F131/G131)*(1-G131)*I131)+(F131*I131*(1-H131)) -> 305.5555556 | K131: =E131*J131*0.72/1000 -> 0.154 | L131: =(1-E131)*J131*0.72/1000 -> 0.066
C132: System description | D132: Waste type | E132: Fraction as Direct | F132: Quant. gas collected (std. dry m3) | G132: Eff. of collection system | H132: Fraction burned | I132: CH4 content of gas | J132: Em. (m3 CH4/yr) | K132: Em. (tonne CH4) | L132: Dir. Em. (tonne CO2 eq)
J133: =IF(G133=0,"",((F133/G133)*(1-G133)*I133)+(F133*I133*(1-H133))) ->  | K133: =IF(J133="","",E133*J133*0.72/1000) ->  | L133: =IF(J133="","",(1-E133)*J133*0.72/1000) -> 
J134: =IF(G134=0,"",((F134/G134)*(1-G134)*I134)+(F134*I134*(1-H134))) ->  | K134: =IF(J134="","",E134*J134*0.72/1000) ->  | L134: =IF(J134="","",(1-E134)*J134*0.72/1000) -> 
J135: =IF(G135=0,"",((F135/G135)*(1-G135)*I135)+(F135*I135*(1-H135))) ->  | K135: =IF(J135="","",E135*J135*0.72/1000) ->  | L135: =IF(J135="","",(1-E135)*J135*0.72/1000) -> 
J136: =IF(G136=0,"",((F136/G136)*(1-G136)*I136)+(F136*I136*(1-H136))) ->  | K136: =IF(J136="","",E136*J136*0.72/1000) ->  | L136: =IF(J136="","",(1-E136)*J136*0.72/1000) -> 
J137: =IF(G137=0,"",((F137/G137)*(1-G137)*I137)+(F137*I137*(1-H137))) ->  | K137: =IF(J137="","",E137*J137*0.72/1000) ->  | L137: =IF(J137="","",(1-E137)*J137*0.72/1000) -> 
K138: Direct | L138: Indirect
F139: Step 2: Sum anaerobic wastewater or sludge treatment methane emissions from Method 1: | K139: =SUM(K133:K137) -> 0 | L139: =SUM(L133:L137) -> 0 | M139: metric tonnes CH4
C140: Method 2 - For anaerobic wastewater treatment and sludge digestion systems where gas is NOT collected or the collection efficiency is not known.
E142: Step 1
E143: A1 | F143: A2 | G143: B | H143: C | I143: D | J143: E | K143: F
E144: Fraction of total emissions claimed as direct for this entry (between 0 and 1) | F144: Amount of organic matter sent to treatment per year [kg BOD or COD per year] | G144: Methane emission factor [default for mill wastes = 0.25 kg methane per kg COD in the feed or 0.60 kg methane per kg BOD in the feed. Units must match column A] | H144: Amount of methane captured and burned [kg methane / yr] | I144: Quantity of methane released [kg methane / yr] | J144: Direct Methane emissions in metric tonnes | K144: Indirect Methane emissions in metric tonnes
I145: D = (A2 * B) - C | J145: E = A1 * D / 1000 | K145: F = (1-A1) * D / 1000
C146: Example: System B | D146: Anaerobic treatment system | E146: 0.7 | F146: 3000000 | G146: 0.25 | H146: 600000 | I146: =F146*G146-H146 -> 150000 | J146: =E146*I146/1000 -> 105 | K146: =(1-E146)*I146/1000 -> 45
C147: System description | D147: Waste type | E147: Fraction as Direct | F147: Amount of organic matter (kg) | G147: CH4 em. factor | H147: CH4 burned (kg/yr) | I147: Em (kg CH4/yr) | J147: Em. (tonne CH4) | K147: Dir. Em. (tonne CO2 eq)
I148: =IF(F148="","",F148*G148-H148) ->  | J148: =IF(I148="","",E148*I148/1000) ->  | K148: =IF(I148="","",(1-E148)*I148/1000) -> 
I149: =IF(F149="","",F149*G149-H149) ->  | J149: =IF(I149="","",E149*I149/1000) ->  | K149: =IF(I149="","",(1-E149)*I149/1000) -> 
I150: =IF(F150="","",F150*G150-H150) ->  | J150: =IF(I150="","",E150*I150/1000) ->  | K150: =IF(I150="","",(1-E150)*I150/1000) -> 
I151: =IF(F151="","",F151*G151-H151) ->  | J151: =IF(I151="","",E151*I151/1000) ->  | K151: =IF(I151="","",(1-E151)*I151/1000) -> 
I152: =IF(F152="","",F152*G152-H152) ->  | J152: =IF(I152="","",E152*I152/1000) ->  | K152: =IF(I152="","",(1-E152)*I152/1000) -> 
J153: Direct | K153: Indirect
E154: Step 2: Sum anaerobic wastewater or sludge treatment methane emissions from Method 2: | J154: =SUM(J148:J152) -> 0 | K154: =SUM(K148:K152) -> 0 | L154: metric tonnes CH4
C156: Sum of emissions from anaerobic wastewater treatment and sludge digestion systems >>
J157: Direct | K157: Indirect
E158: Sum anaerobic wastewater or sludge treatment methane emissions from Methods 1 and 2: | J158: =(K139+J154) -> 0 | K158: =(L139+K154) -> 0 | L158: metric tonnes CH4

Sheet Direct - Make-up Carbonates
B2: These spreadsheets include significant amounts of material copied from other WRI and WBCSD calculation tools. Intellectual property rights of the WRI and WBCSD calculation tools belong to WRI and WBCSD, unless stated otherwise.
C4: Direct Emissions - Emissions from Make-up carbonates used in the pulp mill*
C6: Direct Emissions - Emissions from Make-up carbonates used in the pulp mill
C8: Chemical | D8: Amount used in the pulp mill [short tons/year] | E8: Emission factor [kg CO2 per kg chemical] | F8: CO2 Emissions [metric tonnes CO2 per year]
C9: Sodium Carbonate | E9: 0.415 | F9: =D9*E9*0.9072 -> 0
C10: Calcium Carbonate* | E10: 0.44 | F10: =D10*E10*0.9072 -> 0
E11: Total CO2 from Make-up= | F11: =F10+F9 -> 0
B13: *It is important to note that the calcium make-up is required because of losses from the causticizing area, most of which are in the form of calcium carbonate. This lost material is usually landfilled, thereby sequestering the carbon contained in the calcium carbonate. Because the default method in these calculation tools does not consider this loss of carbon from the system, the estimated CO2 emissions from make-up calcium carbonate will be higher than actual emissions. Where these emissions are significant, companies may want to perform the more detailed analyses required to correct the emissions estimates to account for the carbon that leaves the causticizing area in calcium carbonate.

Sheet CHP Allocation
B2: These spreadsheets include significant amounts of material copied from other WRI and WBCSD calculation tools. Intellectual property rights of the WRI and WBCSD calculation tools belong to WRI and WBCSD, unless stated otherwise.
D4: Combined heat and power: Allocating emissions based on the efficiency of heat and power production
D6: Note: If a facility is using all of the energy outputs of a CHP system, there is no need to allocate the emissions.
C8: EXPLANATION OF CELL COLOR SCHEME
E9: User entry: Source / fuel description
D10: User entry: Fuel use / emission factor values
D11: User enrty: Physical units:
D12: Auto calculated value:
C15: Combined heat and power: Allocating emissions based on the efficiency of heat and power production
F17: Simplified Efficiency Method: Allocation based on assumed efficiencies for both steam and power production and total CHP emissions
F19: Step 1 | G19: Step 2 | H19: Step 3 | I19: Step 4 | J19: Step 5 | M19: Step 6 | N19: Step 7 | O19: Step 8 | P19: Step 9 | Q19: Step 10 | R19: Step 11 | S19: Step 12
F20: A | G20: B | H20: C | I20: D | J20: E | M20: F | N20: G | O20: H | P20: I | Q20: J | R20: K | S20: L
F21: H Heat output (district heat, process heat, other steam) | G21: P Power output | H21: T Total Fuel input | I21: Energy Unit used in A, B, and C | J21: ET Total direct emissions of a GHG from CHP facility | K21: Allowed input values for ratio of heat production efficiency to power production efficiency, eh/ep | M21: Assigned ratio of efficiencies | N21: ep (efficiency of typical power production) | O21: eh (efficiency of typical heat production) | P21: EH Emissions share allocated to heat production | Q21: EP Emissions share allocated to electricity production | R21: Emission factor for heat production | S21: Emission factor for electricity production
J22: Use methods outlined in "Direct - Fuel Combust." Each GHG must be allocated individually (e.g., use a separate row for CO2, CH4, and N2O) | K22: Minimum ratio allowed by energy balance | L22: Maximum ratio allowed by energy balance | M22: Efficiency of heat production divided by efficiency of power production (recommended default ratio of 0.8/.35=2.29) | N22: G = ( A + B * F ) / ( C * F ) | O22: H = G * F | P22: I = E * ( A / ( A + B * F ) ) | Q22: J = E - I | R22: K = I * 2205 / A | S22: L = J * 2205 / B
D23: Description of Entry | E23: GHG | F23: (MMBtu or MWh) | G23: (same unit as in column A) | H23: (same unit as in column A) | I23: (MMBtu or MWh) | J23: metric tonnes GHG | M23: eh/ep | P23: metric tonnes GHG | Q23: metric tonnes GHG | R23: lb GHG / energy unit in D | S23: lb GHG / energy unit in D
C24: Example>> | D24: Cogen system 1 | E24: CO2 | F24: 1000 | G24: 500 | H24: 2679 | I24: MWh | J24: 587.4 | K24: =IF(ISERROR(F24/(H24-G24)),"",F24/(H24-G24)) -> 0.4589261129 | L24: =IF(ISERROR((H24-F24)/G24),"",(H24-F24)/G24) -> 3.358 | M24: 2.3 | N24: =+IF(ISERROR((F24+M24*G24)/(H24*M24)),"",(F24+M24*G24)/(H24*M24)) -> 0.3489296785 | O24: =IF(ISERROR(M24*N24),"",M24*N24) -> 0.8025382605 | P24: =+IF(ISERROR(J24*(F24/(F24+G24*M24))),"",J24*(F24/(F24+G24*M24))) -> 273.2093023 | Q24: =IF(ISERROR(J24-P24),"",J24-P24) -> 314.1906977 | R24: =IF(ISERROR(P24*2205/F24),"",P24*2205/F24) -> 602.4265116 | S24: =IF(ISERROR(Q24*1000/G24),"",Q24*2205/G24) -> 1385.580977
K25: =IF(ISERROR(F25/(H25-G25)),"",F25/(H25-G25)) ->  | L25: =IF(ISERROR((H25-F25)/G25),"",(H25-F25)/G25) -> 
B26: Purch stm: | K26: =IF(ISERROR(F26/(H26-G26)),"",F26/(H26-G26)) ->  | L26: =IF(ISERROR((H26-F26)/G26),"",(H26-F26)/G26) ->  | N26: =+IF(ISERROR((F26+M26*G26)/(H26*M26)),"",(F26+M26*G26)/(H26*M26)) ->  | O26: =IF(ISERROR(M26*N26),"",M26*N26) ->  | P26: =+IF(ISERROR(J26*(F26/(F26+G26*M26))),"",J26*(F26/(F26+G26*M26))) ->  | Q26: =IF(ISERROR(J26-P26),"",J26-P26) ->  | R26: =IF(ISERROR(P26*2205/F26),"",P26*2205/F26) -> 
B27: Export pwr: | K27: =IF(ISERROR(F27/(H27-G27)),"",F27/(H27-G27)) ->  | L27: =IF(ISERROR((H27-F27)/G27),"",(H27-F27)/G27) ->  | N27: =+IF(ISERROR((F27+M27*G27)/(H27*M27)),"",(F27+M27*G27)/(H27*M27)) ->  | O27: =IF(ISERROR(M27*N27),"",M27*N27) ->  | P27: =+IF(ISERROR(J27*(F27/(F27+G27*M27))),"",J27*(F27/(F27+G27*M27))) ->  | Q27: =IF(ISERROR(J27-P27),"",J27-P27) -> 
K28: =IF(ISERROR(F28/(H28-#REF!)),"",F28/(H28-#REF!)) ->  | L28: =IF(ISERROR((H28-F28)/#REF!),"",(H28-F28)/#REF!) ->  | N28: =+IF(ISERROR((F28+M28*#REF!)/(H28*M28)),"",(F28+M28*#REF!)/(H28*M28)) ->  | O28: =IF(ISERROR(M28*N28),"",M28*N28) ->  | P28: =+IF(ISERROR(J28*(F28/(F28+#REF!*M28))),"",J28*(F28/(F28+#REF!*M28))) ->  | Q28: =IF(ISERROR(J28-P28),"",J28-P28) -> 
B34: The equations used to calculate emission allocations in the table above are mathematically identical to those in the current WRI default efficiency method. However, they have been rearranged to allow the user to select a value for the parameter that controls the allocation (the ratio of efficiencies) in a way that is consistent with the energy balance for the CHP system. The rearrangements have been made so that the assumptions inherrent to the efficiency method, and their implications, are more clear. The equations make it clear that (a) the parameter that controls the allocation is the ratio of the efficiencies for heat and power generation, and (b) this ratio and the individual efficiencies are constrained by the energy balance.

Sheet Indirect - Energy Imports
B1: These spreadsheets include significant amounts of material copied from other WRI and WBCSD calculation tools. Intellectual property rights of the WRI and WBCSD calculation tools belong to WRI and WBCSD, unless stated otherwise.
C2: Indirect Emissions
C3: Electricity and/or steam imports
B5: EXPLANATION OF CELL COLOR SCHEME
D6: User entry: Source description
D7: User entry: Fuel use / emission factor values
D8: Auto calculated value:
C11: Indirect Emissions from electricity and steam imports
D13: Step 1 | E13: Step 2 | H13: Step 3 | K13: Step 4
D14: A | E14: B | F14: C | G14: D | H14: E | I14: F | J14: G | K14: H
D15: Electricity and/or steam Import | E15: CO2 emission factor for imported electricity or steam* | F15: CH4 emission factor for imported electricity or steam* | G15: N2O emission factor for imported electricity or steam* | H15: Indirect CO2 emissions in metric tonnes | I15: Indirect CH4 emissions in metric tonnes | J15: Indirect N2O emissions in metric tonnes | K15: Explain source or basis of emission factors for estimating emissions from imported electricity or steam
E16: Suggested emission factors from DOE shown below | F16: Suggested emission factors from DOE shown below | G16: Suggested emission factors from DOE shown below | H16: E = A * B / 2205 | I16: F = A * C / 2205 | J16: G = A * D / 2205
D17: MWh | E17: lb CO2/MWh | F17: lb CH4/MWh | G17: lb N2O/MWh | H17: metric tonnes CO2 | I17: metric tonnes CH4 | J17: metric tonnes N2O | K17: Text explanation
C19: Stream description | D19: Electricty/steam Imports (MWh) | E19: Em. factor (lb CO2/MWh) | F19: Em. factor (lb CH4/MWh) | G19: Em. factor (lb N2O/MWh) | H19: Em. (tonne CO2) | I19: Em. (tonne CH4) | J19: Em. (tonne N2O) | K19: em. factor source/basis
H20: =IF(D20="","",D20*E20/2205) ->  | I20: =IF(D20="","",D20*F20/2205) ->  | J20: =IF(D20="","",D20*G20/2205) -> 
H21: =IF(D21="","",D21*E21/2205) ->  | I21: =IF(D21="","",D21*F21/2205) ->  | J21: =IF(D21="","",D21*G21/2205) -> 
H30: CO2 | I30: CH4 | J30: N2O
C31: Step 4: Sum of indirect emissions from purchased electricity or steam (in metric tonnes): | H31: =SUM(H20:H29) -> 0 | I31: =SUM(I20:I29) -> 0 | J31: =SUM(J20:J29) -> 0
C33: * Emission factors for purchased electricity can normally be obtained from national authorities or from the supplier of the purchased electricity. These tools provide, as suggested defaults, purchased electricity emission factors provided in the DOE's Instructions for Form EIA-1605 Voluntary Reporting of Greenhouse Gases, For Data Through 2002, dated March 2003 Emission factors for imported electricity or steam from CHP systems can be determined by the methods outlined in the "CHP Allocation" worksheet.
C39: Suggested default emission factors for purchased electricity:
C40: Adjusted Electricity Emission Factors by State and Region, reproduced from DOE Instructions for Form EIA-1605 Voluntary Reporting of Greenhouse Gases For Data Through 2002, Appendix C
D43: Carbon Dioxide | E43: Methane | F43: Nitrous Oxide
C44: Region/State | D44: lbs/MWh | E44: lbs/MWh | F44: lbs/MWh
C45: New England | D45: 980 | E45: 0.0207 | F45: 0.0146
C46: Connecticut | D46: 940 | E46: 0.0174 | F46: 0.012
C47: Maine | D47: 850 | E47: 0.0565 | F47: 0.027
C48: Massachusetts | D48: 1280 | E48: 0.0174 | F48: 0.0159
C49: New Hampshire | D49: 680 | E49: 0.0172 | F49: 0.0141
C50: Rhode Island | D50: 1050 | E50: 0.0068 | F50: 0.0047
C51: Vermont | D51: 30 | E51: 0.0096 | F51: 0.0039
C52: Mid Atlantic | D52: 1040 | E52: 0.0093 | F52: 0.0145
C53: New Jersey | D53: 710 | E53: 0.0077 | F53: 0.0079
C54: New York | D54: 860 | E54: 0.0081 | F54: 0.0089
C55: Pennsylvania | D55: 1260 | E55: 0.0107 | F55: 0.0203
C56: East-North Central | D56: 1630 | E56: 0.0123 | F56: 0.0257
C57: Illinois | D57: 1160 | E57: 0.0082 | F57: 0.018
C58: Indiana | D58: 2080 | E58: 0.0143 | F58: 0.0323
C59: Michigan | D59: 1580 | E59: 0.0146 | F59: 0.025
C60: Ohio | D60: 1800 | E60: 0.013 | F60: 0.0288
C61: Wisconsin | D61: 1640 | E61: 0.0138 | F61: 0.026
C62: West-North Central | D62: 1730 | E62: 0.0127 | F62: 0.0269
C63: Iowa | D63: 1880 | E63: 0.0138 | F63: 0.0298
C64: Kansas | D64: 1680 | E64: 0.0112 | F64: 0.0254
C65: Minnesota | D65: 1520 | E65: 0.0157 | F65: 0.0247
C66: Missouri | D66: 1840 | E66: 0.0126 | F66: 0.0288
C67: Nebraska | D67: 1400 | E67: 0.0095 | F67: 0.0219
C68: North Dakota | D68: 2240 | E68: 0.0147 | F68: 0.0339
C69: South Dakota | D69: 800 | E69: 0.0053 | F69: 0.0121
C70: South Atlantic | D70: 1350 | E70: 0.0127 | F70: 0.0207
C71: Delaware | D71: 1830 | E71: 0.0123 | F71: 0.0227
C72: Florida | D72: 1390 | E72: 0.015 | F72: 0.018
C73: Georgia | D73: 1370 | E73: 0.0129 | F73: 0.0226
C74: Maryland* | D74: 1370 | E74: 0.0118 | F74: 0.0206
C75: North Carolina | D75: 1240 | E75: 0.0105 | F75: 0.0203
C76: South Carolina | D76: 830 | E76: 0.0091 | F76: 0.0145
C77: Virginia | D77: 1160 | E77: 0.0137 | F77: 0.0192
C78: West Virginia | D78: 1980 | E78: 0.0137 | F78: 0.0316
C79: East-South Central | D79: 1490 | E79: 0.0128 | F79: 0.024
C80: Alabama | D80: 1310 | E80: 0.0137 | F80: 0.0223
C81: Kentucky | D81: 2010 | E81: 0.014 | F81: 0.0321
C82: Mississippi | D82: 1290 | E82: 0.0132 | F82: 0.0165
C83: Tennessee | D83: 1300 | E83: 0.0105 | F83: 0.0212
C84: West-South Central | D84: 1430 | E84: 0.0087 | F84: 0.0153
C85: Arkansas | D85: 1290 | E85: 0.0125 | F85: 0.0203
C86: Louisiana | D86: 1180 | E86: 0.0094 | F86: 0.0112
C87: Oklahoma | D87: 1720 | E87: 0.011 | F87: 0.0223
C88: Texas | D88: 1460 | E88: 0.0077 | F88: 0.0146
C89: Mountain | D89: 1560 | E89: 0.0108 | F89: 0.0236
C90: Arizona | D90: 1050 | E90: 0.0068 | F90: 0.0154
C91: Colorado | D91: 1930 | E91: 0.0127 | F91: 0.0289
C92: Idaho | D92: 30 | E92: 0.008 | F92: 0.0033
C93: Montana | D93: 1430 | E93: 0.0108 | F93: 0.0227
C94: Nevada | D94: 1520 | E94: 0.009 | F94: 0.0195
C95: New Mexico | D95: 2020 | E95: 0.0131 | F95: 0.0296
C96: Utah | D96: 1930 | E96: 0.0134 | F96: 0.0308
C97: Wyoming | D97: 2150 | E97: 0.0147 | F97: 0.0338
C98: Pacific Contiguous | D98: 450 | E98: 0.0053 | F98: 0.0037
C99: California | D99: 610 | E99: 0.0067 | F99: 0.0037
C100: Oregon | D100: 280 | E100: 0.0033 | F100: 0.0034
C101: Washington | D101: 250 | E101: 0.0037 | F101: 0.004
C102: Pacific Non-contiguous | D102: 1560 | E102: 0.0161 | F102: 0.0149
C103: Alaska | D103: 1380 | E103: 0.0068 | F103: 0.0089
C104: Hawaii | D104: 1660 | E104: 0.0214 | F104: 0.0183
C105: United States | D105: 1340 | E105: 0.0111 | F105: 0.0192
C107: Note: These state- and regional-level electricity emission factors represent
C108: average emissions per MWh generated by utility and nonutility electric
C109: generators for the 1998-2000 time period. The Voluntary Reporting of
C110: Greenhouse Gases Program believes these factors provide reasonably
C111: accurate default values for power generated in a given state or region (US
C112: Census Division). However, reporters should use these state- and regional-
C113: level factors only if utility-specific or power pool-specific emission factors
C114: are not available
C116: *Includes the District of Columbia
C118: Source: Energy Information Administration, Updated State- and Regional-
C119: level Greenhouse Gas Emission Factors for Electricity (March 2002),
C120: http:/www.eia.doe.gov/oiaf/1605/e-factor.html.

Sheet Energy Exports
B1: These spreadsheets include significant amounts of material copied from other WRI and WBCSD calculation tools. Intellectual property rights of the WRI and WBCSD calculation tools belong to WRI and WBCSD, unless stated otherwise.
C2: Emissions Associated with Exports of Electricity and Steam
C4: Note: The emissions related to electricity and steam exports
C5: should be reported separately from indirect emissions from imported power or steam
B7: EXPLANATION OF CELL COLOR SCHEME
D8: User entry: Source description
D9: User entry: Fuel use / emission factor values
D10: Auto calculated value:
C13: Direct emissions attributable to electricity and steam exports
C16: The direct emissions impact is based on amount of emissions associated with producing the exported power or steam
D18: Step 1 | E18: Step 2 | H18: Step 3 | I18: Step 4 | L18: Step 5
D19: A | E19: B | F19: C | G19: D | H19: E | I19: F | J19: G | K19: H | L19: I
D20: Total electricity/steam production by generator | E20: Total direct CO2 emissions from generating the total electricity/steam | F20: Total direct CH4 emissions from generating the total electricity/steam | G20: Total direct N2O emissions from generating the total electricity/steam | H20: Electricity/steam exports from generator | I20: Portion of direct CO2 emissions related to exported power/steam | J20: Portion of direct CH4 emissions related to exported power/steam | K20: Portion of direct N2O emissions related to exported power/steam | L20: Carbon intensity of exported power or steam | N20: Carbon intensity of power on the grid into which the export occurred (applies to electricity only)
I21: F = B * E / A | J21: G = C * E / A | K21: H = D * E / A | L21: I=[F+(G*21)+(H*310)]/E
D22: MWh | E22: metric tonnes CO2 | F22: metric tonnes CH4 | G22: metric tonnes N2O | H22: MWh | I22: metric tonnes CO2 | J22: metric tonnes CH4 | K22: metric tonnes N2O | L22: metric tonnes CO2 equiv. / MWh | N22: metric tons CO2 equiv / MWh
C24: Stream description | D24: Total energy prod. (MWh) | E24: Total emissions (tonne CO2) | F24: Total emissions (tonne CH4) | G24: Total emissions (tonne N2O) | H24: Energy exports (MWh) | I24: CO2 emissions (tonnes) | J24: CH4 emissions (tonnes) | K24: N2O emissions (tonnes) | L24: Carbon intensity (tonnes CO2 eq/MWh) | N24: Carbon intensity on grid (tonne CO2 eq. / MWh)
I25: =IF($D25=0,"",E25*$H25/$D25) ->  | J25: =IF($D25=0,"",F25*$H25/$D25) ->  | K25: =IF($D25=0,"",G25*$H25/$D25) ->  | L25: =+IF(D25=0,"",(E25+(F25*21)+(G25*310))/D25) -> 
I26: =IF($D26=0,"",E26*$H26/$D26) ->  | J26: =IF($D26=0,"",F26*$H26/$D26) ->  | K26: =IF($D26=0,"",G26*$H26/$D26) -> 
I34: CO2 | J34: CH4 | K34: N2O
D35: Step 5: Sum of direct emissions attributable to exported power or steam (metric tonnes): | I35: =SUM(I25:I33) -> 0 | J35: =SUM(J25:J33) -> 0 | K35: =SUM(K25:K33) -> 0

Sheet CO2 Imports and Exports
B1: These spreadsheets include significant amounts of material copied from other WRI and WBCSD calculation tools. Intellectual property rights of the WRI and WBCSD calculation tools belong to WRI and WBCSD, unless stated otherwise.
B2: Imports and Exports of Fossil CO2 , including exports to satellite precipitated calcium carbonate (PCC) plants
C4: Fossil CO2 imported to mill site (e.g. for neutralization)
C6: Total fossil CO2 imported to mill [metric tonnes CO2 per year]
B7: Example | C7: 19375
C13: Fossil fuel-derived CO2 exported to satellite precipitated calcium carbonate (PCC) plants
C15: Note that where CO2 exports consist of gases from a fossil fuel fired lime kiln or calciner, the exports of fossil fuel-derived CO2 shown in the GHG inventory results will be accompanied by exports of climate-neutral biomass-derived CO2. As a general approximation, the amounts of climate-neutral biomass-derived CO2 will be twice the exports of fossil fuel-derived CO2 (Miner, R. and Upton, B. 2002. Methods for estimating greenhouse gas emissions from lime kilns at kraft pulp mills. Energy, Volume 27 No. 8, pp. 729-738 (Sept. 2002).) Additional information on biomass is presented in the "Supporting Info. on Biomass" worksheet.
C17: Total CO2 generated by burning fossil fuel in the combustion unit supplying the PCC plant [metric tonnes CO2 per year] | D17: Fraction of the gas from this source that is sent to the PCC plant over a year's time (Note: Amounts released by the mill rather than exported to the PCC plant should be shown on the "Direct - fuel combust." worksheet) | E17: Fossil CO2 Exports to PCC plant [metric tonnes CO2 per year]
B18: Example | C18: 47000 | D18: 0.9 | E18: =D18*C18 -> 42300
C19: Total CO2 Generated | D19: Fraction gas sent to PCC | E19: CO2 Exports to PCC (tonne) | G19: Total Fossil CO2 Imports (tonnes)
E20: =D20*C20 -> 0 | G20: =IF(C9=0,"",C9) -> 

Sheet Summary Table
C1: These spreadsheets include significant amounts of material copied from other WRI and WBCSD calculation tools. Intellectual property rights of the WRI and WBCSD calculation tools belong to WRI and WBCSD, unless stated otherwise.
C2: Summary of Inventory Results
C5: Name of Inventory | F5: =IF('Operations in Inventory'!F8="","",'Operations in Inventory'!F8) -> 
C7: General description of inventory boundaries | F7: =IF('Operations in Inventory'!F10="","",'Operations in Inventory'!F10) -> 
C9: Direct Emissions | F9: CO2 (metric tonnes) | G9: CH4 (metric tonnes) | H9: N2O (metric tonnes) | I9: CO2-equiv (metric tonnes)
C10: Direct emissions from stationary combustion | F10: ='Stationary Combustion'!I50 -> 0 | G10: ='Stationary Combustion'!J50 -> 0 | H10: ='Stationary Combustion'!K50 -> 0 | I10: ='Stationary Combustion'!L50 -> 0
D12: GHGs associated with electricity/steam wholesaling (this is a subset of direct emissions from stationary combustion)* | F12: ='Energy Exports'!I35 -> 0 | G12: ='Energy Exports'!J35 -> 0 | H12: ='Energy Exports'!K35 -> 0 | I12: =F12+G12*21+H12*310 -> 0
C14: Direct emissions from transportation and mobile Sources | F14: ='Mobile & Transportation'!J97 -> 0 | G14: ='Mobile & Transportation'!K97 -> 0 | H14: ='Mobile & Transportation'!L97 -> 0 | I14: =F14+G14*21+H14*310 -> 0
C16: Direct emissions from waste management | F16: N/A | G16: ='Waste Mngmt.'!P47+'Waste Mngmt.'!J158 -> 0 | H16: N/A | I16: =G16*21 -> 0
C18: Direct emissions from make-up chemicals used in the pulp mill | F18: ='Direct - Make-up Carbonates'!F11 -> 0 | G18: N/A | H18: N/A | I18: =F18 -> 0
C20: Indirect Emissions** | F20: CO2 (metric tonnes) | G20: CH4 (metric tonnes) | H20: N2O (metric tonnes) | I20: CO2-equiv (metric tonnes)
C21: Indirect emissions from purchased power/steam/hot water | F21: ='Indirect - Energy Imports'!H31 -> 0 | G21: ='Indirect - Energy Imports'!I31 -> 0 | H21: ='Indirect - Energy Imports'!J31 -> 0 | I21: =F21+G21*21+H21*310 -> 0
C23: Indirect emissions from transportation and mobile sources | F23: ='Mobile & Transportation'!M97 -> 0 | G23: ='Mobile & Transportation'!N97 -> 0 | H23: ='Mobile & Transportation'!O97 -> 0 | I23: =F23+G23*21+H23*310 -> 0
C25: Indirect emissions from waste management activities | F25: N/A | G25: ='Waste Mngmt.'!Q47+'Waste Mngmt.'!K158 -> 0 | H25: N/A | I25: =G25*21 -> 0
C27: Additional Information: Imports and Exports of Greenhouse Gases
F28: CO2 (metric tonnes) | I28: CO2-equiv (metric tonnes)
C29: Fossil CO2 Imports to Mill | F29: ='CO2 Imports and Exports'!C9 -> 0 | G29: N/A | H29: N/A | I29: =F29 -> 0
C31: Fossil CO2 Exports to PCC Plants | F31: ='CO2 Imports and Exports'!E20 -> 0 | G31: N/A | H31: N/A | I31: =F31 -> 0
C33: *DOE's Instructions for Form EIA-1605 Voluntary Reporting of Greenhouse Gases, For Data Through 2002 states that " 'CO2 Associated with Electricity Wholesaling' asks for emissions associated with your sale of electricity, steam, and hot water to other entities for resale. This pertains to power wholesales and not to retail sales." The Instructions for Form EIA-1605 request this result to be recorded under Part IIa. Indirect Emissions.
C34: **DOE's Instructions for Form EIA-1605 Voluntary Reporting of Greenhouse Gases, For Data Through 2002 states that " 'Net CO2 from Power Transactions' is the difference between 'Indirect CO2 from Purchased Power' and 'CO2 Associated with Electricity Wholesaling.' " Therefore, in completing form EIA-1605 the user of these tools can compute "Net CO2 from Power Transactions" by subtracting the values in row 12 of this worksheet ("GHGs associated with electricity/steam wholesaling") from the values in row 21 ("Indirect emissions from purchased power/steam/hot water").

Sheet Custom Emission Factors
A1: The intellectual property rights of this calculation tool belong to WRI and WBCSD, unless stated otherwise in any of the tools.
A2: Please cite the orginial reference when using this tool.
C4: Custom Emission Factors
C5: Calculating custom emission factors
B7: EXPLANATION OF CELL COLOR SCHEME
D8: User entry: Source description
D9: User entry: Fuel use / emission factor values
D10: Auto calculated value:
D14: A | E14: B | F14: C
D15: Higher Heating Value (HHV) | E15: Carbon Content | F15: Emission Factor
F16: C = 2000 * B * 3.664 / A
D17: MMBtu HHV / short ton | E17: (% w/w) | F17: lb CO2 / MMBtu HHV
E18: This should be entered as a fraction, i.e. 0 > x > 1
C20: Fuel Type
F21: =IF(D21=0,0,3.664*2000*E21/D21) -> 0
F22: =IF(D22=0,0,3.664*2000*E22/D22) -> 0
F23: =IF(D23=0,0,3.664*2000*E23/D23) -> 0
F24: =IF(D24=0,0,3.664*2000*E24/D24) -> 0
F25: =IF(D25=0,0,3.664*2000*E25/D25) -> 0

Sheet Energy content
A2: Energy content (HHV)
A3: Default factors for fuel specific higher heating values
A4: Copied from the WRI/WBCSD Calculation tools (unless specifically noted otherwise for specific entries)
B8: Fuel type | C8: Higher heating value‡ | D8: Heating Value Units | E8: Carbon, % by weight* | F8: Typical density*
C9: (HHV) | F9: ( lb / gal )
B11: Gasoline / petrol | C11: =18.355/152.717 -> 0.1201896318 | D11: MMBtu HHV/gallon | E11: 85.5 | F11: 6.17
B12: Kerosene | C12: =21.537/159.535 -> 0.1349985897 | D12: MMBtu HHV/gallon | F12: 6.76
B13: Aviation Gasoline | C13: =18.355/152.717 -> 0.1201896318 | D13: MMBtu HHV/gallon
B14: Jet Fuel | C14: =21.095/156.258 -> 0.1350010879 | D14: MMBtu HHV/gallon
B15: Diesel | C15: =22.384/161.386 -> 0.138698524 | D15: MMBtu HHV/gallon | F15: 7.1
B16: Distillate fuel oil No.1 | C16: =22.384/161.386 -> 0.138698524 | D16: MMBtu HHV/gallon | E16: 86.6 | F16: 7.05
B17: Distillate fuel oil No.2 | C17: =22.384/161.386 -> 0.138698524 | D17: MMBtu HHV/gallon | E17: 87.3 | F17: 7.05
B18: Distillate fuel oil No.4 | C18: =22.384/161.386 -> 0.138698524 | D18: MMBtu HHV/gallon | E18: 86.4 | F18: 7.59
B19: Residual fuel oil No.5 | C19: =26.033/173.906 -> 0.1496958127 | D19: MMBtu HHV/gallon | E19: 88.7 | F19: 7.93
B20: Residual fuel oil No.6 | C20: =26.033/173.906 -> 0.1496958127 | D20: MMBtu HHV/gallon | E20: 88.3 | F20: 8.45
B21: LPG | C21: =12.805/139.039 -> 0.09209646214 | D21: MMBtu HHV/gallon | F21: 4.52
B22: Propane | C22: =12.669/139.178 -> 0.09102731754 | D22: MMBtu HHV/gallon | E22: 81.6 | F22: 4.24 (liquid)
B23: Anthracite | C23: =3852.16/227.4 -> 16.94001759 | D23: MMBtu HHV/short ton | E23: 80.6
B24: Bituminous coal | C24: =4931.3/205.3 -> 24.01997077 | D24: MMBtu HHV/short ton | E24: 80.1
B25: Sub Bituminous coal | C25: =3715.9/212.7 -> 17.47014575 | D25: MMBtu HHV/short ton
B26: Lignite | C26: =2791.6/215.4 -> 12.96007428 | D26: MMBtu HHV/short ton
B27: Tire derived fuel | C27: =6160/189.538 -> 32.50007914 | D27: MMBtu HHV/short ton
B28: Butane | C28: 0.0974* | D28: MMBtu HHV/gallon | E28: 83.6 | F28: 4.84 (liquid)
B29: Petroleum Coke | C29: =6768.667/225.13 -> 30.06559321 | D29: MMBtu HHV/short ton | E29: 85
B30: Natural gas | C30: =120.593/117.08 -> 1.030005125 | D30: MMBtu HHV/1000 ft3 | E30: 69.4 wt% C (92.5 wt% CH4) | F30: 0.04228 lb/ft3***
B31: Methane | C31: =116.376/115.258 -> 1.009699977 | D31: MMBtu HHV/1000 ft3
B32: Wood ("for as-fired dry wood") | C32: =3120/195 -> 16 | D32: MMBtu HHV/short ton
B33: Pulping Liqour information is in "Supporting Info on Biomass" worksheet
B35: ‡ Calculated from data in Instructions for Form EIA-1605 Voluntary Reporting of Greenhouse Gases, for Data Through 2002, US Department of Energy, Energy Information Administration, Form EIA-1605 (2003), OMB No. 1905-0194, Appendix B, Page 48. available on the internet at ftp://ftp.eia.doe.gov/pub/oiaf/1605/cdrom/pdf/1605INST02.pdf (31 October 2003), unless otherwise noted
B36: *American Petroleum Institute (API), Compendium of Greenhouse Gas Emissions Estimation Methodologies for the Oil & Gas Industry (Pilot Test Version), 2001
B37: *** From DOE Instructions for Form EIA-1605, March 2003

Sheet Conversion Factors
A1: The intellectual property rights of this calculation tool belong to WRI and WBCSD, unless stated otherwise in any of the tools.
A2: Please cite the orginial reference when using this tool.
A4: Conversion Factors
C8: Mass
C9: 1 pound (lb) | D9: 453.6 grams (g) | E9: 0.4536 kilograms (kg) | F9: 0.0004536 metric tons (tonne)
C10: 1 kilogram (kg) | D10: 2.205 pounds (lb)
C11: 1 short ton (ton) | D11: 2,000 pounds (lb) | E11: 907.2 kilograms (kg)
C12: 1 metric ton | D12: 2,205 pounds (lb) | E12: 1,000 kilograms (kg) | F12: 1.1023 short tons (tons)
C14: Volume
C15: 1 cubic foot (ft 3) | D15: 7.4805 gallons (gal) | E15: 0.1781 barrel (bbl)
C16: 1 cubic foot (ft 3) | D16: 28.32 liters (L) | E16: 0.02832 cubic meters (m 3)
C17: 1 gallon (gal) | D17: 0.0238 barrel (bbl) | E17: 3.785 liters (L) | F17: 0.003785 cubic meters (m 3)
C18: 1 barrel (bbl) | D18: 42 gallons (gal) | E18: 158.99 liters (L) | F18: 0.1589 cubic meters (m 3)
C19: 1 litre (L) | D19: 0.001 cubic meters (m 3) | E19: 0.2642 gallons (gal)
C20: 1 cubic meter (m 3) | D20: 6.2897 barrels (bbl) | E20: 264.2 gallons (gal) | F20: 1,000 liters (L)
C22: Energy
C23: 1 kilowatt hour (kWh) | D23: 3412 Btu (btu) | E23: 3,600 kilojoules (KJ)
C24: 1 megajoule (MJ) | D24: 0.001 gigajoules (GJ)
C25: 1 gigajoule (GJ) | D25: 0.9478 million Btu (million btu) | E25: 277.8 kilowatt hours (kWh)
C26: 1 Btu (btu) | D26: 1,055 joules (J)
C27: 1 million Btu (million btu) | D27: 1.055 gigajoules (GJ) | E27: 293 kilowatt hours (kWh)
C28: 1 therm (therm) | D28: 100,000 btu | E28: 0.1055 gigajoules (GJ) | F28: 29.3 kilowatt hours (kWh)
C30: Other
C31: kilo | D31: 1,000
C32: mega | D32: 1,000,000
C33: giga | D33: 1,000,000,000
C34: tera | D34: 1,000,000,000,000
C35: 1 psi | D35: 0.06895 bar
C36: 1 kgf / cm 3 (tech atm) | D36: 0.9807 bar
C37: 1 atmosphere (atm) | D37: 1.01325 bar | E37: 101.325 kilo pascals | F37: 14.696 pounds per square inch (psia)
C38: 1 mile (statue) | D38: 1.609 kilometers
C39: 1 metric ton CH4 | D39: 21 metric tons CO2 equivalent
C40: 1metric ton N2O | D40: 310 metric tons CO2 equivalent
C41: 1 metric ton carbon | D41: 3.664 metric tons CO2

Sheet Energy Factors
A1: This table presents a matrix of factors for converting fuel consumption input data into units of MMBtu (HHV) | IV1: Disable Error Notification Save Box
A2: (Fuel consumption data in units listed can be converted to units of MMBtu HHV by multiplying by the factor) | IU2: 1
A4: Consumption Input Units (right) | B4: Btu (HHV) | C4: Btu (LHV) | D4: Million Btu (HHV) | E4: Million Btu (LHV) | F4: GJ (HHV) | G4: US gallon | H4: Liter | I4: bbl | J4: std ft3 | K4: std m3 | L4: lb | M4: US ton | N4: Metric Tonne | O4: GJ (LHV) | P4: MWh
A5: Fuel type (below)
A6: Gasoline | B6: 1e-06 | C6: 1.053e-06 | D6: 1 | E6: 1.053 | F6: 0.9479 | G6: 0.1202 | H6: =IF(G6="N/A","N/A",G6/3.785) -> 0.03175693527 | I6: =IF(G6="N/A","N/A",G6*42) -> 5.0484 | J6: N/A | K6: N/A | L6: =IF(G6="N/A","N/A",G6/6.17) -> 0.01948136143 | M6: =L6*2000 -> 38.96272285 | N6: =L6*2205 -> 42.95640194 | O6: 0.9978 | P6: 3.412
A7: Gasoline / petrol | B7: 1e-06 | C7: 1.053e-06 | D7: 1 | E7: 1.053 | F7: 0.9479 | G7: 0.1202 | H7: =IF(G7="N/A","N/A",G7/3.785) -> 0.03175693527 | I7: 5.0484 | J7: N/A | K7: N/A | L7: =IF(G7="N/A","N/A",G7/6.17) -> 0.01948136143 | M7: =L7*2000 -> 38.96272285 | N7: 42.95640194 | O7: 0.9978 | P7: 3.412
A8: Gasoline / petrol Mobile 4-stroke engines | B8: 1e-06 | C8: 1.053e-06 | D8: 1 | E8: 1.053 | F8: 0.9479 | G8: 0.1202 | H8: =IF(G8="N/A","N/A",G8/3.785) -> 0.03175693527 | I8: 5.0484 | J8: N/A | K8: N/A | L8: =IF(G8="N/A","N/A",G8/6.17) -> 0.01948136143 | M8: =L8*2000 -> 38.96272285 | N8: 42.95640194 | O8: 0.9978 | P8: 3.412
A9: Gasoline / petrol Mobile 2-stroke engines, general | B9: 1e-06 | C9: 1.053e-06 | D9: 1 | E9: 1.053 | F9: 0.9479 | G9: 0.1202 | H9: =IF(G9="N/A","N/A",G9/3.785) -> 0.03175693527 | I9: 5.0484 | J9: N/A | K9: N/A | L9: =IF(G9="N/A","N/A",G9/6.17) -> 0.01948136143 | M9: =L9*2000 -> 38.96272285 | N9: 42.95640194 | O9: 0.9978 | P9: 3.412
A10: Gasoline / petrol Mobile 2-stroke engines, forestry | B10: 1e-06 | C10: 1.053e-06 | D10: 1 | E10: 1.053 | F10: 0.9479 | G10: 0.1202 | H10: =IF(G10="N/A","N/A",G10/3.785) -> 0.03175693527 | I10: 5.0484 | J10: N/A | K10: N/A | L10: =IF(G10="N/A","N/A",G10/6.17) -> 0.01948136143 | M10: =L10*2000 -> 38.96272285 | N10: 42.95640194 | O10: 0.9978 | P10: 3.412
A11: Kerosene, Mobile sources | B11: 1e-06 | C11: 1.053e-06 | D11: 1 | E11: 1.053 | F11: 0.9479 | G11: 0.135 | H11: =IF(G11="N/A","N/A",G11/3.785) -> 0.035667107 | I11: 5.67 | J11: N/A | K11: N/A | L11: =IF(G11="N/A","N/A",G11/6.76) -> 0.0199704142 | M11: =L11*2000 -> 39.9408284 | N11: 44.03476331 | O11: 0.9978 | P11: 3.412
A12: Kerosene | B12: 1e-06 | C12: 1.053e-06 | D12: 1 | E12: 1.053 | F12: 0.9479 | G12: 0.135 | H12: 0.035667107 | I12: =IF(G12="N/A","N/A",G12*42) -> 5.67 | J12: N/A | K12: N/A | L12: =IF(G12="N/A","N/A",G12/6.76) -> 0.0199704142 | M12: 39.9408284 | N12: 44.03476331 | O12: 0.9978 | P12: 3.412
A13: Jet Fuel | B13: 1e-06 | C13: 1.053e-06 | D13: 1 | E13: 1.053 | F13: 0.9479 | G13: 0.135 | H13: 0.035667107 | I13: 5.67 | J13: N/A | K13: N/A | L13: N/A | M13: N/A | N13: N/A | O13: 0.9978 | P13: 3.412
A14: Aviation gasoline | B14: 1e-06 | C14: 1.053e-06 | D14: 1 | E14: 1.053 | F14: 0.9479 | G14: 0.1202 | H14: 0.03175693527 | I14: 5.0484 | J14: N/A | K14: N/A | L14: N/A | M14: N/A | N14: N/A | O14: 0.9978 | P14: 3.412
A15: Distillate fuel (#1, 2, 4 fuel oil/diesel) Stationary sources except kilns/calciners | B15: 1e-06 | C15: 1.053e-06 | D15: 1 | E15: 1.053 | F15: 0.9479 | G15: 0.1387 | H15: 0.03664464993 | I15: 5.8254 | J15: N/A | K15: N/A | L15: =IF(G15="N/A","N/A",G15/7.1) -> 0.01953521127 | M15: 39.07042254 | N15: =L15*2205 -> 43.07514085 | O15: 0.9978 | P15: 3.412
A16: Distillate fuel (No.1, No.2, No.4 fuel oil and diesel) Lime kilns | B16: 1e-06 | C16: 1.053e-06 | D16: 1 | E16: 1.053 | F16: 0.9479 | G16: 0.1387 | H16: 0.03664464993 | I16: 5.8254 | J16: N/A | K16: N/A | L16: 0.01953521127 | M16: 39.07042254 | N16: 43.07514085 | O16: 0.9978 | P16: 3.412
A17: Distillate fuel (No.1, No.2, No.4 fuel oil and diesel) Calciners | B17: 1e-06 | C17: 1.053e-06 | D17: 1 | E17: 1.053 | F17: 0.9479 | G17: 0.1387 | H17: 0.03664464993 | I17: 5.8254 | J17: N/A | K17: N/A | L17: 0.01953521127 | M17: 39.07042254 | N17: 43.07514085 | O17: 0.9978 | P17: 3.412
A18: Diesel, Mobile sources | B18: 1e-06 | C18: 1.053e-06 | D18: 1 | E18: 1.053 | F18: 0.9479 | G18: 0.1387 | H18: 0.03664464993 | I18: =IF(G18="N/A","N/A",G18*42) -> 5.8254 | J18: N/A | K18: N/A | L18: 0.01953521127 | M18: 39.07042254 | N18: 43.07514085 | O18: 0.9978 | P18: 3.412
A19: Distillate fuel, No.1, Mobile sources | B19: 1e-06 | C19: 1.053e-06 | D19: 1 | E19: 1.053 | F19: 0.9479 | G19: 0.1387 | H19: 0.03664464993 | I19: 5.8254 | J19: N/A | K19: N/A | L19: 0.01953521127 | M19: 39.07042254 | N19: 43.07514085 | O19: 0.9978 | P19: 3.412
A20: Distillate fuel, No. 2, Mobile sources | B20: 1e-06 | C20: 1.053e-06 | D20: 1 | E20: 1.053 | F20: 0.9479 | G20: 0.1387 | H20: 0.03664464993 | I20: 5.8254 | J20: N/A | K20: N/A | L20: 0.01953521127 | M20: 39.07042254 | N20: 43.07514085 | O20: 0.9978 | P20: 3.412
A21: No. 4 fuel oil, Mobile sources | B21: 1e-06 | C21: 1.053e-06 | D21: 1 | E21: 1.053 | F21: 0.9479 | G21: 0.1387 | H21: 0.03664464993 | I21: 5.8254 | J21: N/A | K21: N/A | L21: 0.01953521127 | M21: 39.07042254 | N21: 43.07514085 | O21: 0.9978 | P21: 3.412 | Q21: Fuel type | R21: lb CO2/MMBtu HHV | S21: lb CH4/MMBtu HHV | T21: lb N2O/MMBtu HHV
A22: Diesel | B22: 1e-06 | C22: 1.053e-06 | D22: 1 | E22: 1.053 | F22: 0.9479 | G22: 0.1387 | H22: 0.03664464993 | I22: 5.8254 | J22: N/A | K22: N/A | L22: 0.01953521127 | M22: 39.07042254 | N22: 43.07514085 | O22: 0.9978 | P22: 3.412 | Q22: Gasoline / petrol | R22: 156.425
A23: Distillate fuel oil No. 1 | B23: 1e-06 | C23: 1.053e-06 | D23: 1 | E23: 1.053 | F23: 0.9479 | G23: 0.1387 | H23: 0.03664464993 | I23: 5.8254 | J23: N/A | K23: N/A | L23: 0.01953521127 | M23: 39.07042254 | N23: 43.07514085 | O23: 0.9978 | P23: 3.412 | Q23: Kerosene | R23: 159.535
A24: Distillate fuel oil No. 2 | B24: 1e-06 | C24: 1.053e-06 | D24: 1 | E24: 1.053 | F24: 0.9479 | G24: 0.1387 | H24: 0.03664464993 | I24: 5.8254 | J24: N/A | K24: N/A | L24: 0.01953521127 | M24: 39.07042254 | N24: 43.07514085 | O24: 0.9978 | P24: 3.412 | Q24: Jet Fuel | R24: 156.258
A25: Fuel oil #4 | B25: 1e-06 | C25: 1.053e-06 | D25: 1 | E25: 1.053 | F25: 0.9479 | G25: 0.1387 | H25: 0.03664464993 | I25: 5.8254 | J25: N/A | K25: N/A | L25: 0.01953521127 | M25: 39.07042254 | N25: 43.07514085 | O25: 0.9978 | P25: 3.412 | Q25: Aviation gasoline | R25: 152.717
A26: Residual fuel oil (No.5, No.6 fuel oil) | B26: 1e-06 | C26: 1.053e-06 | D26: 1 | E26: 1.053 | F26: 0.9479 | G26: 0.1497 | H26: 0.03955085865 | I26: 6.2874 | J26: N/A | K26: N/A | L26: =IF(G26="N/A","N/A",G26/8.19) -> 0.01827838828 | M26: 36.55677656 | N26: 40.30384615 | O26: 0.9978 | P26: 3.412 | Q26: Diesel | R26: 161.386
A27: Residual fuel oil (No.5, No.6 fuel oil) Lime kilns | B27: 1e-06 | C27: 1.053e-06 | D27: 1 | E27: 1.053 | F27: 0.9479 | G27: 0.1497 | H27: 0.03955085865 | I27: 6.2874 | J27: N/A | K27: N/A | L27: =IF(G27="N/A","N/A",G27/8.19) -> 0.01827838828 | M27: 36.55677656 | N27: 40.30384615 | O27: 0.9978 | P27: 3.412 | Q27: Distillate fuel oil No. 1 | R27: 161.386
A28: Residual fuel oil (No.5, No.6 fuel oil) Calciners | B28: 1e-06 | C28: 1.053e-06 | D28: 1 | E28: 1.053 | F28: 0.9479 | G28: 0.1497 | H28: 0.03955085865 | I28: 6.2874 | J28: N/A | K28: N/A | L28: =IF(G28="N/A","N/A",G28/8.19) -> 0.01827838828 | M28: 36.55677656 | N28: 40.30384615 | O28: 0.9978 | P28: 3.412 | Q28: Distillate fuel oil No. 2 | R28: 161.386
A29: Residual Fuel oil#5 | B29: 1e-06 | C29: 1.053e-06 | D29: 1 | E29: 1.053 | F29: 0.9479 | G29: 0.1497 | H29: 0.03955085865 | I29: =IF(G29="N/A","N/A",G29*42) -> 6.2874 | J29: N/A | K29: N/A | L29: =IF(G29="N/A","N/A",G29/8.19) -> 0.01827838828 | M29: 36.55677656 | N29: 40.30384615 | O29: 0.9978 | P29: 3.412 | Q29: Fuel oil #4 | R29: 161.386
A30: Residual Fuel oil#6 | B30: 1e-06 | C30: 1.053e-06 | D30: 1 | E30: 1.053 | F30: 0.9479 | G30: 0.1497 | H30: 0.03955085865 | I30: 6.2874 | J30: N/A | K30: N/A | L30: =IF(G30="N/A","N/A",G30/8.19) -> 0.01827838828 | M30: 36.55677656 | N30: 40.30384615 | O30: 0.9978 | P30: 3.412 | Q30: Residual Fuel oil#5 | R30: 173.906
A31: Propane | B31: 1e-06 | C31: 1.053e-06 | D31: 1 | E31: 1.053 | F31: 0.9479 | G31: 0.091 | H31: =IF(G31="N/A","N/A",G31/3.785) -> 0.02404227213 | I31: 3.822 | J31: N/A | K31: N/A | L31: =IF(G31="N/A","N/A",G31/4.24) -> 0.02146226415 | M31: 42.9245283 | N31: 47.32429245 | O31: 1.053 | P31: 3.412 | Q31: Residual Fuel oil#6 | R31: 173.906
A32: Propane, Mobile sources | B32: 1e-06 | C32: 1.053e-06 | D32: 1 | E32: 1.053 | F32: 0.9479 | G32: 0.091 | H32: =IF(G32="N/A","N/A",G32/3.785) -> 0.02404227213 | I32: 3.822 | J32: N/A | K32: N/A | L32: =IF(G32="N/A","N/A",G32/4.24) -> 0.02146226415 | M32: 42.9245283 | N32: 47.32429245 | O32: 1.053 | P32: 3.412 | Q32: LPG | R32: 139.039
A33: LPG | B33: 1e-06 | C33: 1.053e-06 | D33: 1 | E33: 1.053 | F33: 0.9479 | G33: 0.0921 | H33: =IF(G33="N/A","N/A",G33/3.785) -> 0.024332893 | I33: 3.8682 | J33: N/A | K33: N/A | L33: =IF(G33="N/A","N/A",G33/4.52) -> 0.02037610619 | M33: =L33*2000 -> 40.75221239 | N33: 44.92931416 | O33: 0.9978 | P33: 3.412 | Q33: Propane | R33: 139.178
A34: LPG, Mobile sources | B34: 1e-06 | C34: 1.053e-06 | D34: 1 | E34: 1.053 | F34: 0.9479 | G34: 0.0921 | H34: =IF(G34="N/A","N/A",G34/3.785) -> 0.024332893 | I34: 3.8682 | J34: N/A | K34: N/A | L34: =IF(G34="N/A","N/A",G34/4.52) -> 0.02037610619 | M34: =L34*2000 -> 40.75221239 | N34: 44.92931416 | O34: 0.9978 | P34: 3.412 | Q34: Natural gas | R34: 117.08
A35: Petroleum coke | B35: 1e-06 | C35: 1.053e-06 | D35: 1 | E35: 1.053 | F35: 0.9479 | G35: N/A | H35: N/A | I35: N/A | J35: N/A | K35: N/A | L35: =IF(G35="N/A","N/A",G35/6.17) -> N/A | M35: =IF(H35="N/A","N/A",H35/6.17) -> N/A | N35: =IF(I35="N/A","N/A",I35/6.17) -> N/A | O35: 0.9978 | P35: 3.412 | Q35: Methane | R35: 115.258
A36: Natural gas (dry) - boilers and IR dryers | B36: 1e-06 | C36: 1.111e-06 | D36: 1 | E36: 1.111 | F36: 0.9479 | G36: N/A | H36: N/A | I36: N/A | J36: 0.00103 | K36: =J36*35.31 -> 0.0363693 | L36: N/A | M36: N/A | N36: N/A | O36: 1.053 | P36: 3.412 | Q36: Anthracite | R36: 227.4
A37: Natural gas (dry) - turbines | B37: 1e-06 | C37: 1.111e-06 | D37: 1 | E37: 1.111 | F37: 0.9479 | G37: N/A | H37: N/A | I37: N/A | J37: 0.00103 | K37: =J37*35.31 -> 0.0363693 | L37: N/A | M37: N/A | N37: N/A | O37: 1.053 | P37: 3.412 | Q37: Bituminous coal | R37: 205.3
A38: Natural gas (dry) - lime kiln | B38: 1e-06 | C38: 1.111e-06 | D38: 1 | E38: 1.111 | F38: 0.9479 | G38: N/A | H38: N/A | I38: N/A | J38: 0.00103 | K38: 0.0363693 | L38: N/A | M38: N/A | N38: N/A | O38: 1.053 | P38: 3.412 | Q38: Sub-bituminous coal | R38: 212.7
A39: Natural gas (dry) - calciners | B39: 1e-06 | C39: 1.111e-06 | D39: 1 | E39: 1.111 | F39: 0.9479 | G39: N/A | H39: N/A | I39: N/A | J39: 0.00103 | K39: 0.0363693 | L39: N/A | M39: N/A | N39: N/A | O39: 1.053 | P39: 3.412 | Q39: Lignite | R39: 215.4
A40: Natural gas (dry) - Int. Comb. Engine 2 - cycle lean burn | B40: 1e-06 | C40: 1.111e-06 | D40: 1 | E40: 1.111 | F40: 0.9479 | G40: N/A | H40: N/A | I40: N/A | J40: 0.00103 | K40: 0.0363693 | L40: N/A | M40: N/A | N40: N/A | O40: 1.053 | P40: 3.412
A41: Natural gas (dry) - Int. Comb. Engine 4 - cycle lean burn | B41: 1e-06 | C41: 1.111e-06 | D41: 1 | E41: 1.111 | F41: 0.9479 | G41: N/A | H41: N/A | I41: N/A | J41: 0.00103 | K41: 0.0363693 | L41: N/A | M41: N/A | N41: N/A | O41: 1.053 | P41: 3.412
A42: Natural gas (dry) - Int. Comb. Engine 4 - cycle rich burn | B42: 1e-06 | C42: 1.111e-06 | D42: 1 | E42: 1.111 | F42: 0.9479 | G42: N/A | H42: N/A | I42: N/A | J42: 0.00103 | K42: 0.0363693 | L42: N/A | M42: N/A | N42: N/A | O42: 1.053 | P42: 3.412
A43: Natural gas | B43: 1e-06 | C43: 1.111e-06 | D43: 1 | E43: 1.111 | F43: 0.9479 | G43: N/A | H43: N/A | I43: =IF(G43="N/A","N/A",G43*42) -> N/A | J43: 0.00103 | K43: 0.0363693 | L43: =IF(G43="N/A","N/A",G43/6.17) -> N/A | M43: N/A | N43: N/A | O43: 1.053 | P43: 3.412
A44: Natural gas (dry), Mobile sources | B44: 1e-06 | C44: 1.111e-06 | D44: 1 | E44: 1.111 | F44: 0.9479 | G44: N/A | H44: N/A | I44: =IF(G44="N/A","N/A",G44*42) -> N/A | J44: 0.00103 | K44: 0.0363693 | L44: =IF(G44="N/A","N/A",G44/6.17) -> N/A | M44: N/A | N44: N/A | O44: 1.053 | P44: 3.412
A45: Methane | B45: 1e-06 | C45: 1.111e-06 | D45: 1 | E45: 1.111 | F45: 0.9479 | G45: N/A | H45: N/A | I45: N/A | J45: 0.00101 | K45: 0.0356631 | L45: N/A | M45: N/A | N45: N/A | O45: 1.053 | P45: 3.412 | Q45: Fuel type | R45: lb CO2/MMBtu HHV | S45: lb CH4/MMBtu HHV | T45: lb N2O/MMBtu HHV
A46: Anthracite | B46: 1e-06 | C46: 1.053e-06 | D46: 1 | E46: 1.053 | F46: 0.9479 | G46: N/A | H46: N/A | I46: N/A | J46: N/A | K46: N/A | L46: =M46/2000 -> 0.00847 | M46: 16.94 | N46: =M46*1.1023 -> 18.672962 | O46: 0.9978 | P46: 3.412 | Q46: Gasoline / petrol Mobile 4-stroke engines | R46: 156.425 | S46: 0.1 | T46: 0.004
A47: Bituminous coal Overfeed stoker boiler | B47: 1e-06 | C47: 1.053e-06 | D47: 1 | E47: 1.053 | F47: 0.9479 | G47: N/A | H47: N/A | I47: N/A | J47: N/A | K47: N/A | L47: =M47/2000 -> 0.01201 | M47: 24.02 | N47: =M47*1.1023 -> 26.477246 | O47: 0.9978 | P47: 3.412 | Q47: Gasoline / petrol Mobile 2-stroke engines, general | R47: 156.425 | S47: 0.29 | T47: 0.0009
A48: Bituminous coal Underfeed stoker boiler | B48: 1e-06 | C48: 1.053e-06 | D48: 1 | E48: 1.053 | F48: 0.9479 | G48: N/A | H48: N/A | I48: N/A | J48: N/A | K48: N/A | L48: 0.01201 | M48: 24.02 | N48: 26.477246 | O48: 0.9978 | P48: 3.412 | Q48: Gasoline / petrol Mobile 2-stroke engines, forestry | R48: 156.425 | S48: 0.38 | T48: 0.0009
A49: Bituminous coal - Pulverized Dry bottom, wall fired | B49: 1e-06 | C49: 1.053e-06 | D49: 1 | E49: 1.053 | F49: 0.9479 | G49: N/A | H49: N/A | I49: N/A | J49: N/A | K49: N/A | L49: 0.01201 | M49: 24.02 | N49: 26.477246 | O49: 0.9978 | P49: 3.412 | Q49: Kerosene, Mobile sources | R49: 159.535
A50: Bituminous coal - Pulverized Dry bottom, tangential firing | B50: 1e-06 | C50: 1.053e-06 | D50: 1 | E50: 1.053 | F50: 0.9479 | G50: N/A | H50: N/A | I50: N/A | J50: N/A | K50: N/A | L50: 0.01201 | M50: 24.02 | N50: 26.477246 | O50: 0.9978 | P50: 3.412 | Q50: Diesel, Mobile sources | R50: 161.386 | S50: 0.009 | T50: 0.066
A51: Bituminous coal - Pulverized Wet bottom | B51: 1e-06 | C51: 1.053e-06 | D51: 1 | E51: 1.053 | F51: 0.9479 | G51: N/A | H51: N/A | I51: N/A | J51: N/A | K51: N/A | L51: 0.01201 | M51: 24.02 | N51: 26.477246 | O51: 0.9978 | P51: 3.412 | Q51: Distillate fuel, No.1, Mobile sources | R51: 161.386
A52: Bituminous coal Spreader stoker boiler | B52: 1e-06 | C52: 1.053e-06 | D52: 1 | E52: 1.053 | F52: 0.9479 | G52: N/A | H52: N/A | I52: N/A | J52: N/A | K52: N/A | L52: 0.01201 | M52: 24.02 | N52: 26.477246 | O52: 0.9978 | P52: 3.412 | Q52: Distillate fuel, No. 2, Mobile sources | R52: 161.386
A53: Bituminous coal - fluidized bed Circulating or bubbling | B53: 1e-06 | C53: 1.053e-06 | D53: 1 | E53: 1.053 | F53: 0.9479 | G53: N/A | H53: N/A | I53: N/A | J53: N/A | K53: N/A | L53: 0.01201 | M53: 24.02 | N53: 26.477246 | O53: 0.9978 | P53: 3.412 | Q53: No. 4 fuel oil, Mobile sources | R53: 161.386
A54: Bituminous coal | B54: 1e-06 | C54: 1.053e-06 | D54: 1 | E54: 1.053 | F54: 0.9479 | G54: N/A | H54: N/A | I54: =IF(G54="N/A","N/A",G54*42) -> N/A | J54: N/A | K54: N/A | L54: 0.01251 | M54: 25.02 | N54: 27.579546 | O54: 0.9978 | P54: 3.412 | Q54: LPG, Mobile sources | R54: 139.039
A55: Sub-bituminous coal | B55: 1e-06 | C55: 1.053e-06 | D55: 1 | E55: 1.053 | F55: 0.9479 | G55: N/A | H55: N/A | I55: =IF(G55="N/A","N/A",G55*42) -> N/A | J55: N/A | K55: N/A | L55: 0.008235 | M55: 16.47 | N55: 18.154881 | O55: 0.9978 | P55: 3.412 | Q55: Propane, Mobile sources | R55: 139.178
A56: Sub-bituminous coal Overfeed stoker boiler | B56: 1e-06 | C56: 1.053e-06 | D56: 1 | E56: 1.053 | F56: 0.9479 | G56: N/A | H56: N/A | I56: N/A | J56: N/A | K56: N/A | L56: 0.008735 | M56: 17.47 | N56: 19.257181 | O56: 0.9978 | P56: 3.412 | Q56: Natural gas (dry), Mobile sources | R56: 117.08 | S56: 0.01 | T56: 0.0002
A57: Sub-bituminous coal Underfeed stoker boiler | B57: 1e-06 | C57: 1.053e-06 | D57: 1 | E57: 1.053 | F57: 0.9479 | G57: N/A | H57: N/A | I57: N/A | J57: N/A | K57: N/A | L57: 0.008735 | M57: 17.47 | N57: 19.257181 | O57: 0.9978 | P57: 3.412
A58: Sub-bituminous coal - fluidized bed Circulating or bubbling | B58: 1e-06 | C58: 1.053e-06 | D58: 1 | E58: 1.053 | F58: 0.9479 | G58: N/A | H58: N/A | I58: N/A | J58: N/A | K58: N/A | L58: 0.008735 | M58: 17.47 | N58: 19.257181 | O58: 0.9978 | P58: 3.412
A59: Lignite | B59: 1e-06 | C59: 1.053e-06 | D59: 1 | E59: 1.053 | F59: 0.9479 | G59: N/A | H59: N/A | I59: N/A | J59: N/A | K59: N/A | L59: 0.00648 | M59: 12.96 | N59: 14.285808 | O59: 0.9978 | P59: 3.412
A60: Wood and wood waste | B60: 1e-06 | C60: 1.053e-06 | D60: 1 | E60: 1.053 | F60: 0.9479 | G60: N/A | H60: N/A | I60: N/A | J60: N/A | K60: N/A | L60: =M60/2000 -> 0.008 | M60: =3120/195 -> 16 | N60: =M60*1.1023 -> 17.6368 | O60: 0.9978 | P60: 3.412
A61: Pulping liquors | B61: 1e-06 | C61: 1.053e-06 | D61: 1 | E61: 1.053 | F61: 0.9479 | G61: N/A | H61: N/A | I61: N/A | J61: N/A | K61: N/A | L61: =M61/2000 -> 0.00609375 | M61: =AVERAGE(M65:M72) -> 12.1875 | N61: =M61*1.1023 -> 13.43428125 | O61: 0.9978 | P61: 3.412
A62: Biogas used in boilers or kilns | B62: 1e-06 | C62: 1.053e-06 | D62: 1 | E62: 1.053 | F62: 0.9479 | G62: N/A | H62: N/A | I62: N/A | J62: N/A | K62: N/A | L62: N/A | M62: N/A | N62: N/A | O62: 0.9978 | P62: 3.412
A63: Tires and tire derived fuel | B63: 1e-06 | C63: 1.053e-06 | D63: 1 | E63: 1.053 | F63: 0.9479 | G63: N/A | H63: N/A | I63: N/A | J63: N/A | K63: N/A | L63: =M63/2000 -> 0.01625003957 | M63: =6160/189.538 -> 32.50007914 | N63: =M63*1.1023 -> 35.82483724 | O63: 0.9978 | P63: 3.412
A64: Municipal solid waste** | B64: 1e-06 | C64: 1.053e-06 | D64: 1 | E64: 1.053 | F64: 0.9479 | G64: N/A | H64: N/A | I64: N/A | J64: N/A | K64: N/A | L64: =M64/2000 -> 0.00500115084 | M64: =1999/199.854 -> 10.00230168 | N64: =M64*1.1023 -> 11.02553714 | O64: 0.9978 | P64: 3.412
A65: Pulping Liquors: Scandinavian Softwood | B65: 1e-06 | C65: 1.053e-06 | D65: 1 | E65: 1.053 | F65: 0.9479 | G65: N/A | H65: N/A | I65: N/A | J65: N/A | K65: N/A | L65: =M65/2000 -> 0.0061 | M65: 12.2 | N65: =M65*1.1023 -> 13.44806 | O65: 0.9978 | P65: 3.412
A66: Pulping Liquors: Scandinavian Hardwood | B66: 1e-06 | C66: 1.053e-06 | D66: 1 | E66: 1.053 | F66: 0.9479 | G66: N/A | H66: N/A | I66: N/A | J66: N/A | K66: N/A | L66: =M66/2000 -> 0.0058 | M66: 11.6 | N66: =M66*1.1023 -> 12.78668 | O66: 0.9978 | P66: 3.412
A67: Pulping Liquors: North American Softwood | B67: 1e-06 | C67: 1.053e-06 | D67: 1 | E67: 1.053 | F67: 0.9479 | G67: N/A | H67: N/A | I67: N/A | J67: N/A | K67: N/A | L67: 0.0061 | M67: 12.2 | N67: 13.44806 | O67: 0.9978 | P67: 3.412
A68: Pulping Liquors: North American Hardwood | B68: 1e-06 | C68: 1.053e-06 | D68: 1 | E68: 1.053 | F68: 0.9479 | G68: N/A | H68: N/A | I68: N/A | J68: N/A | K68: N/A | L68: 0.006 | M68: 12 | N68: 13.2276 | O68: 0.9978 | P68: 3.412
A69: Pulping Liquors: Tropical Mixed Woods | B69: 1e-06 | C69: 1.053e-06 | D69: 1 | E69: 1.053 | F69: 0.9479 | G69: N/A | H69: N/A | I69: N/A | J69: N/A | K69: N/A | L69: 0.00605 | M69: 12.1 | N69: 13.33783 | O69: 0.9978 | P69: 3.412
A70: Pulping Liquors: Bagasse | B70: 1e-06 | C70: 1.053e-06 | D70: 1 | E70: 1.053 | F70: 0.9479 | G70: N/A | H70: N/A | I70: N/A | J70: N/A | K70: N/A | L70: 0.00635 | M70: 12.7 | N70: 13.99921 | O70: 0.9978 | P70: 3.412
A71: Pulping Liquors: Bamboo | B71: 1e-06 | C71: 1.053e-06 | D71: 1 | E71: 1.053 | F71: 0.9479 | G71: N/A | H71: N/A | I71: N/A | J71: N/A | K71: N/A | L71: 0.00605 | M71: 12.1 | N71: 13.33783 | O71: 0.9978 | P71: 3.412
A72: Pulping Liquors: Straw | B72: 1e-06 | C72: 1.053e-06 | D72: 1 | E72: 1.053 | F72: 0.9479 | G72: N/A | H72: N/A | I72: N/A | J72: N/A | K72: N/A | L72: 0.0063 | M72: 12.6 | N72: 13.88898 | O72: 0.9978 | P72: 3.412
A83: Fuel type | B83: lb CO2 / MMBtu fuel [based on higher heating value, HHV] | C83: lb CH4 / MMBtu fuel [based on higher heating value, HHV] | D83: lb N2O / MMBtu fuel [based on higher heating value, HHV]
A84: Liquid fossil
A85: Gasoline | B85: 156.425
A86: Kerosene | B86: 159.535
A87: Jet Fuel | B87: 156.258
A88: Aviation gasoline | B88: 152.717
A89: Distillate fuel (#1, 2, 4 fuel oil/diesel) Stationary sources except kilns/calciners | B89: 161.386 | C89: 0.0004 | D89: 0.0009
A90: Distillate fuel (No.1, No.2, No.4 fuel oil and diesel) Lime kilns | B90: 161.386 | C90: 0.006 | D90: 0
A91: Distillate fuel (No.1, No.2, No.4 fuel oil and diesel) Calciners | B91: 161.386 | C91: 0.006 | D91: 0.001
A92: Residual fuel oil (No.5, No.6 fuel oil) | B92: 173.906 | C92: 0.007 | D92: 0.0007
A93: Residual fuel oil (No.5, No.6 fuel oil) Lime kilns | B93: 173.906 | C93: 0.006 | D93: 0
A94: Residual fuel oil (No.5, No.6 fuel oil) Calciners | B94: 173.906 | C94: 0.006 | D94: 0.001
A95: LPG | B95: 139.039
A96: Petroleum coke | B96: 225.13
A97: Gaseous fossil
A98: Natural gas (dry) - boilers and IR dryers | B98: 117.08 | C98: 0.0029 | D98: 0.0002
A99: Natural gas (dry) - turbines | B99: 117.08 | C99: 0.001 | D99: 0.0002
A100: Natural gas (dry) - lime kiln | B100: 117.08 | C100: 0.0057 | D100: 0
A101: Natural gas (dry) - calciners | B101: 117.08 | C101: 0.0057 | D101: 0.0002
A102: Natural gas (dry) - Int. Comb. Engine 2 - cycle lean burn | B102: 117.08 | C102: 0.036 | D102: 0.0002
A103: Natural gas (dry) - Int. Comb. Engine 4 - cycle lean burn | B103: 117.08 | C103: 0.027 | D103: 0.0002
A104: Natural gas (dry) - Int. Comb. Engine 4 - cycle rich burn | B104: 117.08 | C104: 0.0061 | D104: 0.0002
A105: Methane | B105: 115.258
A106: Propane | B106: 139.178
A107: Solid fossil
A108: Anthracite | B108: 227.4 | C108: 0.02 | D108: 0.0031
A109: Bituminous coal Overfeed stoker boiler | B109: 205.3 | C109: 0.002 | D109: 0.0035
A110: Bituminous coal Underfeed stoker boiler | B110: 205.3 | C110: 0.031 | D110: 0.0035
A111: Bituminous coal - Pulverized Dry bottom, wall fired | B111: 205.3 | C111: 0.0015 | D111: 0.0035
A112: Bituminous coal - Pulverized Dry bottom, tangential firing | B112: 205.3 | C112: 0.0015 | D112: 0.001
A113: Bituminous coal - Pulverized Wet bottom | B113: 205.3 | C113: 0.002 | D113: 0.0035
A114: Bituminous coal Spreader stoker boiler | B114: 205.3 | C114: 0.002 | D114: 0.0035
A115: Bituminous coal - fluidized bed Circulating or bubbling | B115: 205.3 | C115: 0.002 | D115: 0.21
A116: Sub-bituminous coal Overfeed stoker boiler | B116: 212.7 | C116: 0.002 | D116: 0.0035
A117: Sub-bituminous coal Underfeed stoker boiler | B117: 212.7 | C117: 0.031 | D117: 0.0035
A118: Sub-bituminous coal - fluidized bed Circulating or bubbling | B118: 212.7 | C118: 0.002 | D118: 0.21
A119: Lignite | B119: 215.4 | C119: 0.02 | D119: 0.0031
A120: Biofuels*
A121: Wood and wood waste | B121: 0 | C121: 0.027 | D121: 0.009
A122: Biogas used in boilers or kilns | B122: 0 | C122: 0.006 | D122: 0
A123: Pulping Liquors: Scandinavian Softwood | B123: 0 | C123: 0.0055 | D123: 0.0044
A124: Pulping Liquors: Scandinavian Hardwood | B124: 0 | C124: 0.0055 | D124: 0.0044
A125: Pulping Liquors: North American Softwood | B125: 0 | C125: 0.0055 | D125: 0.0044
A126: Pulping Liquors: North American Hardwood | B126: 0 | C126: 0.0055 | D126: 0.0044
A127: Pulping Liquors: Tropical Mixed Woods | B127: 0 | C127: 0.0055 | D127: 0.0044
A128: Pulping Liquors: Bagasse | B128: 0 | C128: 0.0055 | D128: 0.0044
A129: Pulping Liquors: Bamboo | B129: 0 | C129: 0.0055 | D129: 0.0044
A130: Pulping Liquors: Straw | B130: 0 | C130: 0.0055 | D130: 0.0044
A131: Other fuels
A132: Tires and tire derived fuel | B132: 189.538
A133: Municipal solid waste** | B133: 91.9
A136: Default factors for pulping liquors: | B136: lb CO2/MMBtu HHV
A137: Pulping Liquors: Scandinavian Softwood | B137: 208.2786885
A138: Pulping Liquors: Scandinavian Hardwood | B138: 203.4051724
A139: Pulping Liquors: North American Softwood | B139: 208.2786885
A140: Pulping Liquors: North American Hardwood | B140: 205.7
A141: Pulping Liquors: Tropical Mixed Woods | B141: 211.2
A142: Pulping Liquors: Bagasse | B142: 210.9401575
A143: Pulping Liquors: Bamboo | B143: 207
A144: Pulping Liquors: Straw | B144: 210.3095238
B158: Carbon Dioxide | C158: Methane | D158: Nitrous Oxide
A159: Region/State | B159: CO2 (lbs/MWh) | C159: CH4 (lbs/MWh) | D159: N2O (lbs/MWh)
A160: New England | B160: 980 | C160: 0.0207 | D160: 0.0146
A161: Connecticut | B161: 940 | C161: 0.0174 | D161: 0.012
A162: Maine | B162: 850 | C162: 0.0565 | D162: 0.027
A163: Massachusetts | B163: 1280 | C163: 0.0174 | D163: 0.0159
A164: New Hampshire | B164: 680 | C164: 0.0172 | D164: 0.0141
A165: Rhode Island | B165: 1050 | C165: 0.0068 | D165: 0.0047
A166: Vermont | B166: 30 | C166: 0.0096 | D166: 0.0039
A167: Mid Atlantic | B167: 1040 | C167: 0.0093 | D167: 0.0145
A168: New Jersey | B168: 710 | C168: 0.0077 | D168: 0.0079
A169: New York | B169: 860 | C169: 0.0081 | D169: 0.0089
A170: Pennsylvania | B170: 1260 | C170: 0.0107 | D170: 0.0203
A171: East-North Central | B171: 1630 | C171: 0.0123 | D171: 0.0257
A172: Illinois | B172: 1160 | C172: 0.0082 | D172: 0.018
A173: Indiana | B173: 2080 | C173: 0.0143 | D173: 0.0323
A174: Michigan | B174: 1580 | C174: 0.0146 | D174: 0.025
A175: Ohio | B175: 1800 | C175: 0.013 | D175: 0.0288
A176: Wisconsin | B176: 1640 | C176: 0.0138 | D176: 0.026
A177: West-North Central | B177: 1730 | C177: 0.0127 | D177: 0.0269
A178: Iowa | B178: 1880 | C178: 0.0138 | D178: 0.0298
A179: Kansas | B179: 1680 | C179: 0.0112 | D179: 0.0254
A180: Minnesota | B180: 1520 | C180: 0.0157 | D180: 0.0247
A181: Missouri | B181: 1840 | C181: 0.0126 | D181: 0.0288
A182: Nebraska | B182: 1400 | C182: 0.0095 | D182: 0.0219
A183: North Dakota | B183: 2240 | C183: 0.0147 | D183: 0.0339
A184: South Dakota | B184: 800 | C184: 0.0053 | D184: 0.0121
A185: South Atlantic | B185: 1350 | C185: 0.0127 | D185: 0.0207
A186: Delaware | B186: 1830 | C186: 0.0123 | D186: 0.0227
A187: Florida | B187: 1390 | C187: 0.015 | D187: 0.018
A188: Georgia | B188: 1370 | C188: 0.0129 | D188: 0.0226
A189: Maryland* | B189: 1370 | C189: 0.0118 | D189: 0.0206
A190: North Carolina | B190: 1240 | C190: 0.0105 | D190: 0.0203
A191: South Carolina | B191: 830 | C191: 0.0091 | D191: 0.0145
A192: Virginia | B192: 1160 | C192: 0.0137 | D192: 0.0192
A193: West Virginia | B193: 1980 | C193: 0.0137 | D193: 0.0316
A194: East-South Central | B194: 1490 | C194: 0.0128 | D194: 0.024
A195: Alabama | B195: 1310 | C195: 0.0137 | D195: 0.0223
A196: Kentucky | B196: 2010 | C196: 0.014 | D196: 0.0321
A197: Mississippi | B197: 1290 | C197: 0.0132 | D197: 0.0165
A198: Tennessee | B198: 1300 | C198: 0.0105 | D198: 0.0212
A199: West-South Central | B199: 1430 | C199: 0.0087 | D199: 0.0153
A200: Arkansas | B200: 1290 | C200: 0.0125 | D200: 0.0203
A201: Louisiana | B201: 1180 | C201: 0.0094 | D201: 0.0112
A202: Oklahoma | B202: 1720 | C202: 0.011 | D202: 0.0223
A203: Texas | B203: 1460 | C203: 0.0077 | D203: 0.0146
A204: Mountain | B204: 1560 | C204: 0.0108 | D204: 0.0236
A205: Arizona | B205: 1050 | C205: 0.0068 | D205: 0.0154
A206: Colorado | B206: 1930 | C206: 0.0127 | D206: 0.0289
A207: Idaho | B207: 30 | C207: 0.008 | D207: 0.0033
A208: Montana | B208: 1430 | C208: 0.0108 | D208: 0.0227
A209: Nevada | B209: 1520 | C209: 0.009 | D209: 0.0195
A210: New Mexico | B210: 2020 | C210: 0.0131 | D210: 0.0296
A211: Utah | B211: 1930 | C211: 0.0134 | D211: 0.0308
A212: Wyoming | B212: 2150 | C212: 0.0147 | D212: 0.0338
A213: Pacific Contiguous | B213: 450 | C213: 0.0053 | D213: 0.0037
A214: California | B214: 610 | C214: 0.0067 | D214: 0.0037
A215: Oregon | B215: 280 | C215: 0.0033 | D215: 0.0034
A216: Washington | B216: 250 | C216: 0.0037 | D216: 0.004
A217: Pacific Non-contiguous | B217: 1560 | C217: 0.0161 | D217: 0.0149
A218: Alaska | B218: 1380 | C218: 0.0068 | D218: 0.0089
A219: Hawaii | B219: 1660 | C219: 0.0214 | D219: 0.0183
A220: United States | B220: 1340 | C220: 0.0111 | D220: 0.0192

Sheet Raw Data Log
A1: Stationary Sources | E1: CO2 | G1: CH4 | I1: N20
A2: Source Description | B2: Fuel Type | C2: Quantity Burned | D2: Units | E2: Emission Factor | F2: Units | G2: Emission Factor | H2: Units | I2: Emission Factor | J2: Units
A28: Transportation Sources | F28: CO2 | H28: CH4 | J28: N20
A29: Source Description | B29: Fuel Type | C29: Fraction Direct | D29: Quantity Burned | E29: Units | F29: Emission Factor | G29: Units | H29: Emission Factor | I29: Units | J29: Emission Factor | K29: Units
A55: Mobile Sources Other - Fuel Based | F55: CO2 | H55: CH4 | J55: N20
A56: Source Description | B56: Fuel Type | C56: Fraction Direct | D56: Quantity Burned | E56: Units | F56: Emission Factor | G56: Units | H56: Emission Factor | I56: Units | J56: Emission Factor | K56: Units
A82: Landfills - Method 1
A83: Landfill Description | B83: Waste Type | C83: Fraction Direct | D83: Quantity of Gas | E83: Units | F83: Efficiency of Gas Collection | G83: Fraction of Gas Burned | H83: Methane Content of Gas | I83: Fraction of Uncollected Methane Oxidized in Landfill Cover
A89: Landfills - Method 2
A90: Landfill Description | B90: Waste Type | C90: Fraction Direct | D90: Annual Waste Deposited | E90: Units | F90: Ultimate Methane Potential | G90: First Order Methane Generation Rate | H90: Years Since Landfill opened | I90: Years since landfill stopped accepting waste | J90: Fraction of uncollected methane that is oxidized in landfill cover | K90: Fraction of landfill gas that is collected | L90: Fraction of landfill gas that is burned
A91: Blabla | B91: Blb | C91: 1 | D91: 1000 | E91: Wet US Tons | F91: 100 | G91: 0.03 | H91: 1990 | I91: 2020 | J91: 0.1 | K91: 0.5 | L91: 1
A96: Landfill Method 3
A97: Landfill Description | B97: Waste Type | C97: Fraction Direct | D97: First Year Deposit | E97: Last Year Deposit | F97: Year of Interest | G97: Year of data entry | H97: Quantity Placed | I97: units | J97: ultimate methane potential | K97: First order methane generation rate constant | L97: Fraction of uncollected methane that oxidizes in landfill cover | M97: Fraction of landfill gas that is collected | N97: Fraction of landfill gas that is burned
A147: Anaerobic Wastewater Treatment Method 1
A148: System Description | B148: Waste Type | C148: Fraction Direct | D148: Quantity of Gas Collected | E148: Units | F148: Efficiency of gas collection system | G148: Fraction of Gas Burned | H148: Methane content of gas
A154: Anaerobic Wastewater Treatment Method 2
A155: System Description | B155: Waste Type | C155: Fraction Direct | D155: Amount of Organic Matter sent to plant per year | E155: units | F155: Methane Emission factor | G155: Amount of methane captured and burned | H155: units
A161: Make-up carbonates
A162: Amount of Sodium Carbonate Used | B162: Units | C162: Amount of Calcium Carbonate used | D162: Units
A165: Energy Imports
A166: Source Description | B166: Quantity Imported | C166: Units | D166: CO2 Emission Factor | E166: Emission Factor Units | F166: CH4 Emission Factor | G166: Emission Factor Units | H166: N2O Emission Factor | I166: Emission Factor Units
A177: Energy Exports
A178: Source Description | B178: Total Generated | C178: Units | D178: CO2 Emission Factor | E178: Emission Factor Units | F178: CH4 Emission Factor | G178: Emission Factor Units | H178: N2O Emission Factor | I178: Emission Factor Units | J178: Quantity Exported | K178: Units | L178: Grid Intensity
A188: CO2 Imports and Exports
A189: Total Fossil CO2 Imported | B189: units | C189: Total CO2 generated | D189: units | E189: Fraction of gas sent to PCC plant per year
A192: Biomass - Wood Fuel
A193: Source Description | B193: Quantity Burned | C193: units | D193: Emission Factor | E193: units | F193: Amount of climate neutral biomass derived CO2 that is exported | G193: units
A209: Biomass - Pulping Liquors
A210: Source Description | B210: Quantity Burned | C210: Unit | D210: Emission Factor | E210: units | F210: Amount of climate neutral biomass derived CO2 that is exported | G210: units

Sheet Supporting Info. on Biomass
C3: Supporting Information on Biomass
C4: Estimating Climate-Neutral CO2 Emissions from Biomass Combustion.
B5: Many pulp and paper mills generate more than half of their energy needs from climate-neutral biomass fuels recovered from the industry’s waste and process streams. Energy-rich biomass – derived from wood chips, bark, sawdust and pulping liquors recovered from the harvesting and manufacturing processes – is the result of atmospheric carbon dioxide being sequestered by trees during growth and transformed into organic carbon substances. When these biomass fuels are burned, the CO2 emitted during the manufacturing and combustion processes is the atmospheric carbon dioxide that was sequestered during growth of the tree; hence, there is no net contribution to the atmospheric CO2 level. This carbon cycle is a closed-loop. New tree growth keeps absorbing atmospheric carbon dioxide and maintains the cycle.
B7: Any increases or decreases in the amount of carbon sequestered by the forests are accounted for in the comprehensive forest accounting system. This is the approach generally prescribed for national inventories by the United Nations Framework Convention on Climate Change. Most international protocols including that of the Intergovernmental Panel on Climate Change (IPCC) have adopted the convention set out by the United Nations. The IPCC has stated that emissions from biomass do not add to atmospheric concentrations of carbon dioxide. (See footnote 1) The USDOE also accepts this convention, and recommends assigning an emission factor of 0 lb CO2/MMBtu for biomass based fuels (this zero CO2 emission factor is used in the "Stationary Combustion" sheet for biomass fuels).
B9: Estimated Biomass Emissions: The information reported below on biomass emissions is being supplied:  To ensure that readers understand the entity’s overall energy profile in terms of both greenhouse gas emissions, and non-greenhouse gas emissions, and  To provide awareness and understanding of how climate-neutral biomass fuels are generated and used in the manufacture of pulp and paper. Also, note that the information reported below is in conformance with the general greenhouse gas protocol designed by the World Resources Institute and the World Business Council for Sustainable Development. Users of these calculation tools may elect to modify the format and type of information presented based on specific facility or company needs.
B10: Footnote 1. Intergovernmental Panel on Climate Change (IPCC). Revised 1996 IPCC Guidelines for National Greenhouse Gas Inventories: Reporting Instructions (Volume 1). IPCC National Greenhouse Gas Inventory Program. http://www.ipcc-nggip.iges.or.jp/public/gl/invs4.htm (26 Nov. 2001) Intergovernmental Panel on Climate Change (IPCC). Revised 1996 IPCC Guidelines for National Greenhouse Gas Inventories: Reference Manual (Volume 3). IPCC National Greenhouse Gas Inventory Program. http://www.ipcc-nggip.iges.or.jp/public/gl/invs6.htm (20 Nov. 2001)
B13: EXPLANATION OF CELL COLOR SCHEME
B14: User entry: Source / fuel description
B15: User entry: Data and parameter values
B16: Auto calculated value:
C20: Part I. Supporting Information on Biomass Carbon Emissions from Combustion of Wood or Bark
E21: Step 1 | F21: Step 2 | G21: Step 3
E22: A | F22: B | G22: C | H22: D
E23: Quantity of fuel burned | F23: CO2 emission factor: [default value for "Wood and Wood Waste" is: 195* lb CO2/MMBtu HHV] | G23: CO2 emissions in lb CO2/yr | H23: CO2 emissions in metric tons Carbon/yr
E24: (Units of MMBtu HHV) | F24: lb CO2 / MMBtu HHV | G24: C = A * B | H24: D = C*12/44 / 2205
C25: Example: Bark Boiler | D25: Bark | E25: 500000 | F25: 195 | G25: =E25*F25 -> 97500000 | H25: =G25*12/44/2205 -> 12059.3692
C26: Source description | D26: Fuel type | E26: Fuel Quant. | F26: Em. Factor | G26: Em. (lb CO2) | H26: Em. (tonne carbon)
G27: =IF(E27="","",E27*F27) ->  | H27: =IF(ISERROR(G27*12/44/1000),"",G27*12/44/2205) -> 
G28: =IF(E28="","",E28*F28) ->  | H28: =IF(ISERROR(G28*12/44/1000),"",G28*12/44/2205) -> 
E43: Biomass Carbon Released as climate-neutral CO2 from Combustion of Wood or Bark | I43: =SUM(H27:H41) -> 0 | J43: Metric Tonnes Carbon /year
B44: Amount of climate-neutral biomass-derived CO2 included in above number that is exported (e.g. to PCC plant) rather than being emitted - Optional information | J44: Metric Tonnes Carbon /year
C46: Note: | D46: * Emission factor for "Wood and Wood Waste" from USDOE Instructions for Form EIA-1605 Voluntary Reporting of Greenhouse Gases For Data Through 2002, March 2003, Appendix B.
C56: Part II. Supporting Information on Biomass Carbon Emissions from Combustion of Spent Pulping Liquors
C57: Note that because the emission factors for spent pulping liquors are based on the carbon content of the liquors (assuming a one-percent correction for unoxidized carbon), the liquor emission factor will include any carbon exiting with smelt from a recovery furnace. Therefore, for kraft mills, the liquor emission factors estimate biomass carbon emissions from both the recovery furnace and from the lime kiln. Companies have the option of estimating the amounts of climate-neutral biomass-derived CO2 that is exported rather than being returned to the atmosphere. If the exports are from a lime kiln or calciner where fossil fuels are being used, as a general approximation the exports of climate-neutral biomass-derived CO2 will be twice the exports of fossil fuel-derived CO2 (see "CO2 Imports and Exports" worksheet). Where exports consist of gases from a lime kiln or calciner that is burning only biomass fuels, all of the exports are carbon-neutral biomass-derived CO2.
E59: Step 1 | F59: Step 2 | G59: Step 3
E60: A | F60: B | G60: C | H60: D
E61: Quantity of fuel burned | F61: CO2 emission factor: [default values are listed in the table below; lb CO2/MMBtu HHV] | G61: CO2 emissions in lb CO2/yr | H61: CO2 emissions in metric tonnes Carbon/yr
E62: MMBtu HHV | F62: lb CO2/MMBtu HHV | G62: C = A * B | H62: F = E*12/44 / 2205
C63: Example: Recovery Furnace | D63: Kraft Pulping Liquor | E63: 100000 | F63: 208.3 | G63: =E63*F63 -> 20830000 | H63: =G63*12/44/2205 -> 2576.376005
C64: Source description | D64: Fuel type | E64: Fuel Quant. | F64: Em. factor | G64: Em. (kg CO2) | H64: Em. (tonne Carbon)
G65: =IF(E65="","",E65*F65) ->  | H65: =IF(ISERROR(G65*12/44/1000),"",G65*12/44/2205) -> 
G66: =IF(E66="","",E66*F66) ->  | H66: =IF(ISERROR(G66*12/44/1000),"",G66*12/44/2205) -> 
D81: Biomass Carbon in Pulping Liquors Released as climate-neutral CO2 from the recovery furnace and lime kiln or calciner | J81: =SUM(H65:H79) -> 0 | K81: Metric Tonnes Carbon /year
C82: Amount of climate-neutral biomass-derived CO2 included in above number that is exported (e.g. to PCC plant) rather than being emitted - Optional information | K82: Metric Tonnes Carbon /year
C87: Suggested pulping liquor default emission factors
C89: Type of Pulping Liquor | D89: Wood Furnish | E89: Typical Carbon Content [percent, dry basis] | F89: Typical Energy Content [GJ HHV / metric tonne dry solids] | G89: Calculated Energy Content [MMBtu HHV / short ton dry solids] | H89: Calculated Emission Factor* [lb CO2 / MMBtu HHV]
C90: Kraft black liquor* | D90: Scandinavian Softwood | E90: 35 | F90: 14.2 | G90: 12.2 | H90: =IF(F90=0,"",(E90/100)*0.99*(44/12)*2000/G90) -> 208.2786885
C91: Kraft black liquor* | D91: Scandinavian Hardwood | E91: 32.5 | F91: 13.5 | G91: 11.6 | H91: =IF(F91=0,"",(E91/100)*0.99*(44/12)*2000/G91) -> 203.4051724
C92: Kraft black liquor* | D92: North American Softwood | E92: 35 | F92: 14.2 | G92: 12.2 | H92: 208.2786885
C93: Kraft black liquor* | D93: North American Hardwood | E93: 34 | F93: 13.9 | G93: 12 | H93: 205.7
C94: Kraft black liquor* | D94: Tropical Eucalyptus | E94: 34.8 | G94: =IF(F94=0,"",0.95*F94) -> 
C95: Kraft black liquor* | D95: Tropical Mixed Woods | E95: 35.2 | F95: 14.1 | G95: 12.1 | H95: 211.2
C96: Kraft black liquor* | D96: Bagasse | E96: 36.9 | F96: 14.8 | G96: 12.7 | H96: 210.9401575
C97: Kraft black liquor* | D97: Bamboo | E97: 34.5 | F97: 14.1 | G97: 12.1 | H97: 207
C98: Kraft black liquor* | D98: Straw | E98: 36.5 | F98: 14.7 | G98: 12.6 | H98: 210.3095238
C99: Semi-Chemical | H99: to be determined
C100: Sulfite | H100: to be determined
C103: * Kraft black liquor default emission factors are based on the carbon content of the liquors (assuming a one-percent correction for unoxidized carbon) and include any carbon exiting with smelt from a recovery furnace. Therefore, for kraft mills, the liquor emission factors estimate biomass carbon emissions from both the recovery furnace and from the lime kiln. Factors obtained from: Chapter 1- Chemical Recovery, by Esa Vakkilainen. 1999. In: Papermaking Science and Technology, Book 6B: Chemical Pulping. Gullichsen, J., and Paulapuro, H. (eds.). Helsinki, Finland: Fapet Oy. Units were converted from GJ HHV/metric tonne solids to MMBtu HHV/short ton solids.

Sheet Revision Log
A1: Revision Log
A3: Revisions from Version 2.1 to Version 2.1a
A5: Corrected an error in the visual basic forms that write data to the Energy Exports worksheet. The visual basic code attempted to write entries of the optional element 'emissions intensity of the grid into which power is exported' to the wrong cell. Data should have been written to column N, but rather was attempted to be written to column L which is electronically "protected" from revision. This did not result in a calculation error (i.e., calculation results were not affected). However, it did result in a "run time" error of the visual basic code, crashing the visual basic program. The visual basic code was revised, and the formulas previously overwritten were replaced.
A7: Revisions from Version 2.1a to Version 2.1b
A9: Waste quantities now need to be entered as wet mass rather than dry mass. Default Lo is on a wet mass basis.
